Cogmind - Beta 16 @@@ ROGUE MODE // 2025.11.08 @ 20:19:12 Player: Dosh Result: Escaped! Performance ------------- Evolutions (9) 4500 Regions Visited (31) 6200 Robots Destroyed (421) 2105 Value Destroyed (26314) 26314 Prototype IDs (61) 1220 Alien Tech Used (2) 400 Bonus (22773) 22773 TOTAL SCORE: 63512 Bonus ------- High Alert Combat Kills 2781 Follower Combat Kills 6456 Entered Garrisons 1800 Used RIF Installer 4500 Network Hubs Disabled 600 Aligned with FarCom 300 Built Enhanced Grunts 300 A7 Reached Mainframe 300 Recovered Sigix Corpse 4000 Win 3000 Friendly Fire -1264 Cogmind --------- Core Integrity 1483/1600 Matter 300/300 Energy 600/615 System Corruption 0% Temperature Cool (7) Movement Walking (106) Location To Epsilon Eridani Parts ------- > --- POWER (3) -------- Reinforced Antimatter Reactor Particle Reactor Micro Antimatter Reactor > --- PROPULSION (7) --- Advanced Myomer Leg Improved Thunder Leg Enhanced Multireflex Exoskeleton Centrium Leg Centrium Leg Centrium Leg > --- UTILITY (13) ----- Experimental Heat Sink Advanced Coolant Injector High-capacity Storage Unit Spectral Analyzer Quantum Capacitor Layered Heavy Armor Plating Advanced Powered Armor Relay Coupler [Swarmer] (21) Relay Coupler [Grunt] (35) Relay Coupler [Sentry] (13) Relay Coupler [Hunter] (21) > --- WEAPON (2) ------- Multirail Multirail > --- INVENTORY (20) --- Micro Antimatter Reactor Centrium Leg Centrium Leg Advanced Heat Sink Experimental Terrain Scanner Improved Transmission Jammer Experimental EM Shield Authchip [R/NC] Relay Coupler [NC] (41) Relay Coupler [Grunt] (36) Relay Coupler [Sentry] (26) Relay Coupler [Heavy] (16) Long-range Proton Cannon Enhanced Nova Cannon Enhanced Nova Cannon Advanced Remote Datajack Sigix Corpse Sigix Corpse Peak State ------------ > --- POWER ------------ Reinforced Antimatter Reactor Particle Reactor Micro Antimatter Reactor > --- PROPULSION ------- Advanced Myomer Leg Improved Thunder Leg Enhanced Multireflex Exoskeleton Centrium Leg Centrium Leg Centrium Leg > --- UTILITY ---------- Experimental Heat Sink Advanced Coolant Injector High-capacity Storage Unit Spectral Analyzer Quantum Capacitor Layered Heavy Armor Plating Advanced Powered Armor Relay Coupler [Swarmer] Relay Coupler [Grunt] Relay Coupler [Sentry] Relay Coupler [Hunter] > --- WEAPON ----------- Multirail Multirail > --- INVENTORY -------- Micro Antimatter Reactor Centrium Leg Centrium Leg Advanced Heat Sink Experimental Terrain Scanner Improved Transmission Jammer Experimental EM Shield Authchip [R/NC] Relay Coupler [NC] Relay Coupler [Grunt] Relay Coupler [Sentry] Relay Coupler [Heavy] Long-range Proton Cannon Enhanced Nova Cannon Enhanced Nova Cannon Advanced Remote Datajack Sigix Corpse Sigix Corpse [Rating: 196] Favorites ----------- Power Particle Reactor Engine Improved Ion Engine Power Core Micro Nuclear Core Reactor Particle Reactor Propulsion Aluminum Leg Leg Aluminum Leg Utility High-capacity Storage Unit Device Experimental Heat Sink Storage High-capacity Storage Unit Processor Advanced Targeting Computer Hackware Relay Coupler [Grunt] Protection Improved Medium Armor Plating Artifact Phase Redirector Weapon Advanced Remote Datajack Energy Gun Improved EM Shotgun Energy Cannon Phase Cannon Ballistic Gun Heavy Assault Rifle Launcher Grenade Launcher Special Weapon Advanced Remote Datajack Slashing Weapon Longsword +1 Build | -11 -10 -10 -10 -9 -8 -8 -8 -8 -7 -7 -6 -6 -6 -6 -5 -5 -5 -5 -5 -5 -5 -5 -4 -4 -4 -4 -3 -3 -2 -2 -1 ------- Run | Yrd Mat Min Exi Min Mat Gar Mat Gar Fac Gar Fac Gar Fac Gar Fac Gar Fac Ext Cet Arc Hub Gar Fac Was Fac Gar Res Gar Res Qua Acc Slots Evolved 18 | . . . . . 4 . . . 2 . 2 . . . 2 . . . . . . . 2 . . . 2 . 2 . 2 Power 2 | . . . . . . . . . . . 1 . . . . . . . . . . . . . . . 1 . . . . Propulsion 5 | . . . . . 2 . . . 1 . . . . . 1 . . . . . . . . . . . . . 1 . . Utility 11 | . . . . . 2 . . . 1 . 1 . . . 1 . . . . . . . 2 . . . 1 . 1 . 2 Weapon . | . . . . . . . . . . . . . . . . . . . . . . . . . . . . . . . . Parts Attached 285 | 6 14 . 1 . 26 16 10 15 17 9 7 15 4 8 4 9 . 8 3 4 15 27 9 2 . 7 18 13 8 3 7 Power 35 | 1 2 . . . 3 . 2 1 2 . 2 3 . . . 3 . 2 1 . 1 3 . . . . 6 3 . . . Engine 12 | 1 2 . . . 1 . 2 1 2 . 2 1 . . . . . . . . . . . . . . . . . . . Core 3 | . . . . . 2 . . . . . . . . . . . . 1 . . . . . . . . . . . . . Reactor 20 | . . . . . . . . . . . . 2 . . . 3 . 1 1 . 1 3 . . . . 6 3 . . . Propulsion 74 | 2 4 . . . 9 9 1 4 5 1 4 3 . . 2 . . 1 . . 4 9 3 2 . . 4 3 2 2 . Treads . | . . . . . . . . . . . . . . . . . . . . . . . . . . . . . . . . Leg 74 | 2 4 . . . 9 9 1 4 5 1 4 3 . . 2 . . 1 . . 4 9 3 2 . . 4 3 2 2 . Wheel . | . . . . . . . . . . . . . . . . . . . . . . . . . . . . . . . . Hover . | . . . . . . . . . . . . . . . . . . . . . . . . . . . . . . . . Flight . | . . . . . . . . . . . . . . . . . . . . . . . . . . . . . . . . Utility 128 | 1 1 . 1 . 6 3 6 6 7 7 1 7 1 8 2 6 . 4 2 4 9 11 4 . . 7 7 7 5 1 4 Device 32 | . . . . . 1 . 2 1 4 1 . 2 . . 1 1 . . . 1 7 4 1 . . 1 1 1 1 . 2 Storage 3 | 1 1 . 1 . . . . . . . . . . . . . . . . . . . . . . . . . . . . Processor 4 | . . . . . 1 . . . . . . . . . . . . . . . . . . . . . 1 . 2 . . Hackware 66 | . . . . . . . 4 2 3 5 1 4 1 8 1 4 . 2 1 3 1 7 2 . . 6 3 5 2 . 1 Protection 22 | . . . . . 4 3 . 3 . 1 . 1 . . . 1 . 2 1 . 1 . 1 . . . 2 1 . . 1 Artifact 1 | . . . . . . . . . . . . . . . . . . . . . . . . . . . . . . 1 . Weapon 48 | 2 7 . . . 8 4 1 4 3 1 . 2 3 . . . . 1 . . 1 4 2 . . . 1 . 1 . 3 Energy Gun 14 | 1 7 . . . 3 1 . 1 . . . . . . . . . 1 . . . . . . . . . . . . . Energy Cannon 15 | . . . . . 1 . . . 2 1 . . 3 . . . . . . . 1 4 2 . . . . . . . 1 Ballistic Gun 9 | 1 . . . . 3 1 . 2 . . . . . . . . . . . . . . . . . . . . . . 2 Ballistic Cannon . | . . . . . . . . . . . . . . . . . . . . . . . . . . . . . . . . Launcher 4 | . . . . . . 2 . 1 . . . 1 . . . . . . . . . . . . . . . . . . . Special Weapon 5 | . . . . . . . 1 . 1 . . 1 . . . . . . . . . . . . . . 1 . 1 . . Impact Weapon . | . . . . . . . . . . . . . . . . . . . . . . . . . . . . . . . . Slashing Weapon 1 | . . . . . 1 . . . . . . . . . . . . . . . . . . . . . . . . . . Piercing Weapon . | . . . . . . . . . . . . . . . . . . . . . . . . . . . . . . . . Special Melee Weapon . | . . . . . . . . . . . . . . . . . . . . . . . . . . . . . . . . Unidentified Prototypes 6 | . . . . . . . . . . . . . . . . . . . 1 . 2 . . 1 . . . . 1 1 . Corrupted Parts 3 | . . . . . . . . . . . . . . . . . . . 1 . . 2 . . . . . . . . . System Corruption 16 | . . . . . . . . . . . . . . . . . . . 6 . . 10 . . . . . . . . . Parts Lost 56 | . 2 . . . 4 2 . 11 4 2 1 . . 2 . . . 2 . . 4 10 . . . 2 3 4 . 1 2 Power 9 | . . . . . . . . 1 1 . . . . . . . . 1 . . 1 1 . . . 1 2 1 . . . Propulsion 18 | . . . . . . . . 8 . 2 1 . . . . . . . . . 1 3 . . . 1 . 2 . . . Utility 18 | . . . . . 1 2 . 1 2 . . . . 2 . . . 1 . . 2 3 . . . . 1 1 . . 2 Weapon 11 | . 2 . . . 3 . . 1 1 . . . . . . . . . . . . 3 . . . . . . . 1 . Highest Loss Streak 4 | . 1 . . . 2 1 . 3 2 1 1 . . 1 . . . 2 . . 2 4 . . . 1 2 2 . 1 2 To Critical Strikes 2 | . . . . . . . . . . . . . . . . . . 1 . . . . . . . 1 . . . . . Average Backups 17 | . 12 15 16 18 18 18 18 17 19 17 19 18 18 17 18 18 17 17 18 17 16 16 18 19 17 18 18 19 19 17 15 Power 1 | . 1 2 2 2 2 2 1 1 . 1 1 1 1 1 1 1 1 . 1 1 1 1 2 2 2 1 1 2 1 1 1 Propulsion 2 | . 1 3 3 3 3 4 3 1 . 1 1 2 3 3 3 3 3 3 3 3 3 2 2 2 1 . 2 3 2 2 2 Utility 7 | . 1 2 3 3 2 3 4 4 11 10 12 10 10 8 9 10 9 9 9 8 8 8 10 12 11 12 12 11 13 11 8 Weapon 4 | . 7 7 7 9 8 7 6 7 6 4 4 3 3 3 4 3 3 3 4 5 3 2 2 3 3 3 2 1 2 1 2 Tool/Special . | . . . . . . . . . . . . . . . . . . . . . . . . . . . . . . . . Unused Backups 53 | . 1 1 . . 4 3 1 1 1 1 1 2 . 1 . 4 . . . . 3 5 1 . . 5 5 2 1 2 8 Power 8 | . 1 . . . 1 . 1 . . . . . . . . . . . . . 2 2 . . . . . . . . 1 Propulsion 13 | . . . . . 1 . . . . . 1 2 . . . . . . . . 1 1 1 . . . 3 1 . 1 1 Utility 26 | . . . . . 1 2 . 1 . 1 . . . 1 . 4 . . . . . . . . . 5 2 1 1 1 6 Weapon 5 | . . 1 . . 1 . . . 1 . . . . . . . . . . . . 2 . . . . . . . . . Tool/Special 1 | . . . . . . 1 . . . . . . . . . . . . . . . . . . . . . . . . . Average Slot Usage (%) 92 | . 85 85 62 85 98 94 99 92 89 98 86 89 93 92 93 93 94 92 94 93 93 86 93 94 92 93 95 99 99 95 91 Engine 3 | . 14 14 14 14 8 . 6 8 7 6 8 6 . . . . . . . . . . . . . . . . . . . Reactor 6 | . . . . . . . . . . . . 6 13 12 11 11 11 10 10 11 10 10 10 10 9 10 13 13 13 13 12 Leg 30 | . 28 28 28 28 35 36 36 31 30 36 28 23 26 25 29 29 29 29 29 29 29 29 31 31 29 30 27 28 30 26 24 Device 8 | . . . . . 5 1 3 2 4 7 6 6 9 12 16 12 11 12 10 8 9 14 19 21 20 18 15 16 11 10 14 Storage 7 | . 14 14 14 14 9 9 9 9 7 7 6 6 6 6 5 5 5 5 5 5 5 5 5 5 5 5 4 4 4 4 4 Processor 1 | . . . . . 3 9 6 . . . . . . . . . . . . . . . . . . . 3 4 4 4 4 Hackware 10 | . . . . . . . 7 10 17 12 13 16 12 14 11 13 17 12 17 18 17 13 13 15 10 12 11 10 20 21 19 Protection 7 | . . . . . 16 15 10 13 5 9 8 9 10 5 4 6 5 7 5 5 5 1 2 . 3 4 5 8 4 3 4 Energy Gun 5 | . 26 28 5 28 11 8 13 4 . . . . . . . . . . 3 . . . . . . . . . . . . Energy Cannon 3 | . . . . . . . . . 2 11 6 5 9 6 . 6 5 5 6 . 3 7 6 5 5 5 4 6 5 5 3 Ballistic Gun 1 | . 1 . . . 5 . . 6 9 . . . . . . . . . . . . . . . . . . . . . 1 Special Weapon 2 | . . . . . . . 2 . 2 2 6 4 2 3 5 2 4 1 . 5 2 . 2 5 5 5 3 1 2 2 2 Slashing Weapon 1 | . . . . . . 3 1 3 . . . 1 . 1 5 1 . 2 . 4 4 . . . . . . . . . . Peak Build Rating 196 | 6 11 11 15 15 31 44 41 48 47 47 69 95 95 101 113 113 106 110 111 116 129 133 140 143 142 143 171 170 167 181 196 Average Rating 84 | 4 10 11 9 15 24 37 36 38 38 45 54 81 92 95 112 107 106 105 110 113 114 118 135 141 137 138 163 160 165 175 185 On Entrance 87 | . 6 11 11 15 15 27 41 36 40 47 46 69 92 94 101 113 106 106 102 111 116 126 126 140 142 140 143 169 154 166 181 Avg Prop Armor Cover (%) 3 | . . . . . . . . . . . . . . . . . . . . 4 3 4 . . . . 3 . . 2 1 Naked Turns . | . . . . . . . . . . . . . . . . . . . . . . . . . . . . . . . . Heaviest Build 166 | 10 33 33 53 53 62 62 63 72 82 82 83 97 105 105 97 115 105 115 104 100 110 129 137 120 127 129 164 166 144 148 151 Greatest Support 208 | 20 20 20 20 20 43 48 48 53 68 68 87 110 110 110 138 133 133 133 130 105 140 158 173 178 178 178 180 180 203 208 168 Greatest Overweight (x) 2 | . 1 1 2 2 1 1 1 2 2 1 1 1 . 1 . . . . . . 1 1 . . 1 . 1 . . 1 . Average Overweight (x) . | . . 1 1 2 1 1 1 1 . . . . . . . . . . . . . . . . . . . . . . . Largest Inventory Capacity 20 | 8 15 15 20 20 20 20 20 20 20 20 20 20 20 20 20 20 20 20 20 20 20 20 20 20 20 20 20 20 20 20 20 Average Capacity 19 | 6 14 15 17 20 20 20 20 20 20 20 20 20 20 20 20 20 20 20 20 20 20 20 20 20 20 20 20 20 20 20 20 Most Carried 20 | 1 15 15 19 19 20 20 20 20 20 20 20 20 20 20 20 20 20 20 20 20 20 20 20 20 20 20 20 20 20 20 18 Average Carried 18 | . 12 14 16 19 19 19 19 17 19 17 19 19 19 18 19 19 19 19 20 19 19 17 19 20 18 19 19 19 19 19 16 Final Capacity 20 | 8 15 15 20 20 20 20 20 20 20 20 20 20 20 20 20 20 20 20 20 20 20 20 20 20 20 20 20 20 20 20 20 Final Carried 20 | 1 15 15 19 19 20 20 18 20 19 20 20 20 17 20 20 20 19 20 20 19 19 20 20 20 19 20 18 20 20 20 18 Class Distribution -------------------- 43% | Botlord-Mutant 24% | Bothacker-Mutant 21% | Scavenger-Mutant 11% | Mutant Dominant Class ---------------- Mutant | -10/Materials Mutant | -10/Mines Mutant | -10/Exiles Mutant | -9/Mines Scavenger-Mutant | -8/Materials Scavenger-Mutant | -8/Garrison Bothacker-Mutant | -8/Materials Bothacker-Mutant | -8/Garrison Bothacker-Mutant | -7/Factory Bothacker-Mutant | -7/Garrison Bothacker-Mutant | -6/Factory Botlord-Mutant | -6/Garrison Botlord-Mutant | -6/Factory Bothacker-Mutant | -6/Garrison Bothacker-Mutant | -5/Factory Botlord-Mutant | -5/Garrison Botlord-Mutant | -5/Factory Botlord-Mutant | -5/Extension Botlord-Mutant | -5/Cetus Bothacker-Mutant | -5/Archives Scavenger-Mutant | -5/Hub_04(d) Botlord-Mutant | -5/Garrison Botlord-Mutant | -4/Factory Botlord-Mutant | -4/Waste Botlord-Mutant | -4/Factory Botlord-Mutant | -4/Garrison Botlord-Mutant | -3/Research Botlord-Mutant | -3/Garrison Botlord-Mutant | -2/Research Botlord-Mutant | -2/Quarantine Botlord-Mutant | -1/Access Resources | -11 -10 -10 -10 -9 -8 -8 -8 -8 -7 -7 -6 -6 -6 -6 -5 -5 -5 -5 -5 -5 -5 -5 -4 -4 -4 -4 -3 -3 -2 -2 -1 ----------- Run | Yrd Mat Min Exi Min Mat Gar Mat Gar Fac Gar Fac Gar Fac Gar Fac Gar Fac Ext Cet Arc Hub Gar Fac Was Fac Gar Res Gar Res Qua Acc Matter Collected 11367 | 209 209 32 . 27 778 788 220 618 584 283 55 341 355 558 . 591 64 405 60 178 473 1061 564 50 190 517 785 565 257 234 316 Remotely . | . . . . . . . . . . . . . . . . . . . . . . . . . . . . . . . . Salvage Created 20543 | . 819 204 . 50 1652 1339 766 880 615 235 . 244 530 787 . 1020 64 1526 68 96 856 1176 393 143 149 872 2627 1092 580 565 1195 Parts 971 | . 47 14 . . 89 70 27 52 40 6 . 6 14 43 . 52 2 58 3 11 33 61 18 5 5 31 118 44 37 22 63 Haulers Intercepted 5 | . . . . . 3 . 2 . . . . . . . . . . . . . . . . . . . . . . . . Recyclers Shooed 9 | . . . . . . . . . . . . . . . . . . 3 . . . . 3 . 1 . 2 . . . . Parts Field Recycled . | . . . . . . . . . . . . . . . . . . . . . . . . . . . . . . . . Retrieved Matter . | . . . . . . . . . . . . . . . . . . . . . . . . . . . . . . . . Parts Self-Destructed . | . . . . . . . . . . . . . . . . . . . . . . . . . . . . . . . . Prevented . | . . . . . . . . . . . . . . . . . . . . . . . . . . . . . . . . Parts Restored . | . . . . . . . . . . . . . . . . . . . . . . . . . . . . . . . . Kills | -11 -10 -10 -10 -9 -8 -8 -8 -8 -7 -7 -6 -6 -6 -6 -5 -5 -5 -5 -5 -5 -5 -5 -4 -4 -4 -4 -3 -3 -2 -2 -1 ------- Run | Yrd Mat Min Exi Min Mat Gar Mat Gar Fac Gar Fac Gar Fac Gar Fac Gar Fac Ext Cet Arc Hub Gar Fac Was Fac Gar Res Gar Res Qua Acc Combat Hostiles Destroyed 350 | . 17 6 . 1 27 42 8 25 10 5 . 3 7 18 . 29 . 14 . . 10 30 6 . . 17 30 16 8 8 13 Melee 39 | . . . . . . . . . . . . 2 1 9 . 7 . 8 . . 9 3 . . . . . . . . . Guns 98 | . 17 5 . 1 24 24 7 14 6 . . . . . . . . . . . . . . . . . . . . . . Cannons 135 | . . . . . . . . . 4 5 . 1 6 6 . 9 . 4 . . 1 18 1 . . 16 28 13 8 7 8 AOE 55 | . . 1 . . 1 18 1 11 . . . . . 3 . 13 . . . . . 7 . . . . . . . . . Classes Destroyed 19 | . 6 . . . 5 3 . 2 . . . 1 . . . . . . . . . 1 . 1 . . . . . . . Worker 11 | . 2 . . . . . . . 1 . . . 1 . . . . . . . 1 . 1 . . . 3 . 1 . 1 Builder 12 | . 1 . . . 3 . 1 . 1 . . . . . . . . 2 . . 1 . . . . . 1 . 1 1 . Hauler 5 | . . . . . 3 . 2 . . . . . . . . . . . . . . . . . . . . . . . . Recycler 10 | . . . . . 1 . 1 . 1 . . . 1 . . . . 3 . . . . . . 1 . 2 . . . . Mechanic 1 | . . . . . 1 . . . . . . . . . . . . . . . . . . . . . . . . . . Operator 6 | . 1 . . . . . . . . . . . . . . . . 2 . 3 . . . . . . . . . . . Watcher 13 | . 1 . . . 3 . 2 1 . . . . 1 . . . . 3 . . 1 . . . . . . . . . 1 Swarmer 75 | . 3 3 . . 7 10 . 8 . . . . 1 5 . 18 . 2 . . . 8 . . . 8 . 2 . . . Cutter 3 | . . . . . . . . . . . . . . . . . . . . . . 3 . . . . . . . . . Grunt 122 | . 14 3 . 1 14 20 7 6 5 1 . . 4 6 . 8 . 5 . . 1 8 . . . 5 8 2 . 2 2 Brawler 11 | . . . . . 1 3 . 2 . . . . . . . . . . . . 1 . . . . . . 4 . . . Duelist 7 | . . . . . . 1 . . . 1 . . . 1 . . . . . . 1 . . . . . 1 2 . . . Sentry 28 | . . . . . 5 6 . 2 . . . 1 . . . 2 . 3 . . 2 2 . . . . 3 2 . . . Specialist 5 | . . . . . . . . 1 . . . . . . . . . . . . . 2 . . . . 2 . . . . Hunter 29 | . . . . . . 1 1 1 . . . . 1 3 . 2 . . . . . 5 4 . . . 3 2 . . 6 Programmer 66 | . . . . . . 1 . 6 6 3 . . 1 3 . . . 2 . . 2 2 2 . . 3 15 2 8 6 4 Behemoth 4 | . . . . . . . . 1 . . . . . . . . . 1 . . . . . . . 1 . . . . 1 Enhanced Grunt 1 | . . . . . . . . . . . . . . . . . . . . . 1 . . . . . . . . . . Lightning 3 | . . . . . . . . . . . . . . . . . . . . . 3 . . . . . . . . . . Executioner 2 | . . . . . . . . . . . . 2 . . . . . . . . . . . . . . . . . . . Surgeon 1 | . . . . . . . . . . . . . . . . . . . . . . . . . . 1 . . . . . Thug 1 | . . . . . . . . . . . . . . . . . . . 1 . . . . . . . . . . . . Butcher 2 | . . . . . . . . . . . . . . . . . . 2 . . . . . . . . . . . . . Martyr 2 | . . . . . . . . . . . . . . . . . . . . . . . . 2 . . . . . . . Guerrilla 1 | . . . . . . . . . . . . . . . . . 1 . . . . . . . . . . . . . . Best Kill Streak 12 | . 4 3 . 1 3 11 3 6 3 3 . 2 5 4 . 9 . 6 . 3 2 12 5 . 1 5 4 2 6 3 5 Combat Bots Only 12 | . 3 3 . 1 3 11 2 6 1 3 . 2 2 4 . 9 . 3 . . 2 12 5 . . 5 3 2 4 3 4 Max Kills in Single Turn 5 | . 2 2 . 1 2 3 2 3 2 1 . 1 1 2 . 4 1 1 1 1 1 5 1 1 1 1 1 1 1 2 1 Gunslinging 1 | . . 1 . . 1 . . 1 . . . . . . . . . . . . . . . . . . . . . . . Exploded 5 | . . 1 . . 1 3 1 3 . . . . . 2 . 4 . . . . . 5 . . . . . . . . . Melee 1 | . . . . . . . . . . . . 1 1 1 . 1 . 1 . . 1 1 . . . . . . . . . Uniques/NPCs Destroyed . | . . . . . . . . . . . . . . . . . . . . . . . . . . . . . . . . Combat | -11 -10 -10 -10 -9 -8 -8 -8 -8 -7 -7 -6 -6 -6 -6 -5 -5 -5 -5 -5 -5 -5 -5 -4 -4 -4 -4 -3 -3 -2 -2 -1 -------- Run | Yrd Mat Min Exi Min Mat Gar Mat Gar Fac Gar Fac Gar Fac Gar Fac Gar Fac Ext Cet Arc Hub Gar Fac Was Fac Gar Res Gar Res Qua Acc Hostile Shots Fired 2065 | . 47 16 . 3 120 96 30 164 90 43 1 40 47 131 2 77 8 38 5 . 101 197 57 . . 130 287 113 74 80 68 Missed 624 | . 9 6 . 2 34 33 11 40 30 17 . 10 7 33 . 23 3 15 1 . 23 59 25 . . 35 93 40 27 21 27 Deflected 12 | . . . . . . . . . . . . 1 . 4 . 2 . 3 . . 2 . . . . . . . . . . Hits 1441 | . 38 10 . 1 86 63 19 124 60 26 1 30 40 98 2 54 5 23 4 . 78 138 32 . . 95 194 73 47 59 41 Melee 26 | . . . . . 1 . . . . 3 . . . 6 . . . . . . 1 7 . . . . 5 3 . . . Projectile 1415 | . 38 10 . 1 85 63 19 124 60 23 1 30 40 92 2 54 5 23 4 . 77 131 32 . . 95 189 70 47 59 41 AOE 3 | . . . . . . . . . 1 . . . . . . . . . . . . 1 . . . . . . 1 . . Critical Strikes 75 | . . . . . 2 3 1 7 2 2 . 2 3 4 . 1 . 1 . . 7 4 3 . . 4 12 3 6 8 . Part Disruptions 16 | . . . . . . . . . . . . . . . . . . . . . 2 6 . . . . 4 . . 2 2 Damage Taken 18931 | . 430 98 . 12 1267 902 255 1400 934 394 19 662 509 938 20 504 37 356 98 . 1417 2200 403 . 30 1124 1838 1379 476 469 760 Core 2004 | . 61 10 . . 162 138 32 163 89 61 . 109 17 64 . 36 . 48 . . 119 305 52 . . 30 163 110 11 107 117 Absorbed by Shields 5063 | . . . . . . . 37 534 11 27 . 119 383 662 22 534 39 352 43 . 315 104 211 . 7 411 1147 105 . . . Redirected to Core 85 | . . . . . . . . . . . . . . . . . . . . . . . . . . . . . . 37 48 Ignored by Resistances 4258 | . . . . . . 42 . . . . . . . . . . . . . . 450 82 . . . 291 1603 70 700 861 159 Regen/Repaired (Parts) 2969 | . . . . . . . . . . . . . 348 556 20 125 . . . . . . 154 209 186 279 565 . 205 322 . Core Remaining (%) 73 | 100 . . . 71 . . . 10 . 78 . . . 77 . . . . . . . 49 . . . 92 . 79 . 91 92 Volleys Fired 1613 | . 43 10 . 3 111 45 38 65 77 39 5 34 41 65 3 60 23 47 7 4 28 126 49 8 13 158 256 81 52 44 78 Largest 2 | . 2 2 . 2 2 2 2 2 2 2 1 2 2 2 1 2 1 2 2 1 2 2 1 1 1 1 2 2 2 2 1 Hottest 310 | . 90 90 . 90 90 90 90 110 170 170 5 170 170 170 10 170 85 310 225 10 170 225 120 40 40 120 160 160 240 240 120 Shots Fired 2265 | . 90 20 . 6 209 141 65 145 116 53 5 37 55 86 3 86 23 70 13 5 35 148 49 8 13 159 259 130 85 73 78 Gun 681 | . 90 20 . 6 200 112 60 125 61 . . . . . . . . 6 1 . . . . . . . . . . . . Cannon 1215 | . . . . . 9 . . . 37 45 . 22 36 65 . 70 15 54 12 1 20 118 23 8 8 128 226 110 73 68 67 Launcher 48 | . . . . . . 29 . 10 . . . . . 3 . 4 . . . . . 2 . . . . . . . . . Special 321 | . . . . . . . 5 10 18 8 5 15 19 18 3 12 8 10 . 4 15 28 26 . 5 31 33 20 12 5 11 Kinetic 295 | . . . . . 144 28 . 62 61 . . . . . . . . . . . . . . . . . . . . . . Thermal 1262 | . . . . . 9 60 . 39 37 45 . 22 36 65 . 70 15 60 13 1 20 106 9 8 8 128 226 110 73 68 34 Explosive 48 | . . . . . . 29 . 10 . . . . . 3 . 4 . . . . . 2 . . . . . . . . . Electromagnetic 339 | . 90 20 . 6 56 24 60 24 . . . . . . . . . . . . . 12 14 . . . . . . . 33 Robot Hit Streak 19 | . 10 4 . 5 17 15 19 14 12 6 4 7 16 5 4 11 7 8 4 3 11 9 6 7 5 13 13 15 12 8 8 Robot Miss Streak 9 | . 5 3 . 3 2 2 5 3 3 3 1 3 3 4 . 3 2 3 2 1 1 9 2 1 1 7 5 3 2 3 2 Penetration Max 1 | . . . . . . . . . . . . . . . . . . . . . . 1 . . . . . . . . . Secondary Targets 9 | . 1 2 . . 2 1 . 3 . . . . . . . . . . . . . . . . . . . . . . . Max Gunslinging Chain 1 | . 1 1 . . 1 1 . 1 . . . . . . . . . . . . . . . . . . . . . . . Capacitor 519 | . . . . . . . . . . . . . . . . . . . . . . 72 23 8 8 128 213 . . . 67 Autonomous 99 | . . . . . . 60 . 39 . . . . . . . . . . . . . . . . . . . . . . . Shots Hit Robots 1545 | . 65 16 . 4 153 94 52 99 77 25 4 18 39 68 3 63 11 64 8 7 85 78 27 6 6 87 173 71 56 43 43 Core Hits 686 | . 49 12 . 3 70 92 33 48 19 5 . 6 13 24 . 41 1 29 3 3 26 40 5 5 2 23 61 28 17 8 20 Critical Kills 11 | . . . . . . . . . . . . . . . . . . 2 . . . . 1 . . . 3 2 . 2 1 Critical Parts Destroyed 2 | . . . . . 2 . . . . . . . . . . . . . . . . . . . . . . . . . . Critical Strikes 37 | . . . . . 2 . . . . . . 2 . 3 . 3 . 6 . . 7 3 3 . . . 3 2 . 2 1 Meltdown 11 | . . . . . . . . . . . . . . . . . . 2 . . . . 1 . . . 3 2 . 2 1 Destroy 2 | . . . . . 2 . . . . . . . . . . . . . . . . . . . . . . . . . . Corrupt 4 | . . . . . . . . . . . . . . . . . . . . . . 2 2 . . . . . . . . Sever 20 | . . . . . . . . . . . . 2 . 3 . 3 . 4 . . 7 1 . . . . . . . . . Melee Attacks 254 | . . . . . 10 19 5 10 . . . 6 2 44 1 29 4 32 . 3 80 9 . . . . . . . . . Impact . | . . . . . . . . . . . . . . . . . . . . . . . . . . . . . . . . Slashing 254 | . . . . . 10 19 5 10 . . . 6 2 44 1 29 4 32 . 3 80 9 . . . . . . . . . Piercing . | . . . . . . . . . . . . . . . . . . . . . . . . . . . . . . . . Sneak Attacks 16 | . . . . . 3 . 1 . . . . . . . . . 4 3 . 3 2 . . . . . . . . . . Combat Hostiles . | . . . . . . . . . . . . . . . . . . . . . . . . . . . . . . . . Follow-up Attacks . | . . . . . . . . . . . . . . . . . . . . . . . . . . . . . . . . Martial Strikes 39 | . . . . . . . . . . . . . . 7 . 7 . 7 . . 15 3 . . . . . . . . . Damage Inflicted 50765 | . 1150 230 . 65 2730 3938 1179 3344 1624 650 2 349 944 2336 . 2867 353 2711 273 400 3582 3108 815 250 104 2666 6516 2453 2478 2025 1623 Guns 9516 | . 980 178 . 58 2263 2013 887 2343 794 . . . . . . . . . . . . . . . . . . . . . . Cannons 26552 | . . . . . . . . . 791 650 . 108 771 946 . 950 29 1082 273 32 304 2088 762 250 104 2549 6331 2453 2446 2023 1610 Explosions 5640 | . 123 37 . . 169 1925 165 940 . . . . . 296 . 995 . . . . 205 785 . . . . . . . . . Melee 8102 | . . . . . 236 . 110 42 . . . 241 108 1094 . 896 324 1399 . 368 3050 234 . . . . . . . . . Ramming 955 | . 47 15 . 7 62 . 17 19 39 . 2 . 65 . . 26 . 230 . . 23 1 53 . . 117 185 . 32 2 13 Kinetic 3793 | . . . . . 1526 408 . 1065 794 . . . . . . . . . . . . . . . . . . . . . . Thermal 27904 | . 123 37 . . 169 1368 165 1074 791 650 . 108 771 946 . 950 29 1082 273 32 304 1669 288 250 104 2549 6331 2453 2446 2023 919 Explosive 4844 | . . . . . . 1882 . 886 . . . . . 296 . 995 . . . . . 785 . . . . . . . . . Electromagnetic 5167 | . 980 178 . 58 737 280 887 258 . . . . . . . . . . . . 205 419 474 . . . . . . . 691 Impact . | . . . . . . . . . . . . . . . . . . . . . . . . . . . . . . . . Slashing 8102 | . . . . . 236 . 110 42 . . . 241 108 1094 . 896 324 1399 . 368 3050 234 . . . . . . . . . Piercing . | . . . . . . . . . . . . . . . . . . . . . . . . . . . . . . . . Highest Corruption 22 | . 2 2 2 2 . 1 3 6 4 7 . . . 3 . 1 1 1 7 7 11 22 . . . 4 6 1 4 10 . Average Corruption 3 | . 1 2 2 2 . 1 1 2 2 4 . . . 2 . 1 1 1 6 4 4 13 . . . 3 3 1 2 6 . Corruption Purged 21 | . . . . . . . 3 . 4 . . . . . . . . . . 7 . . . . . . 7 . . . . Corruption Blocked . | . . . . . . . . . . . . . . . . . . . . . . . . . . . . . . . . Effects 329 | . 18 13 3 2 . 14 16 10 7 13 . . . 21 . 3 5 12 23 11 22 56 . . . 16 27 7 5 25 . Message Errors 68 | . 5 2 . . . 5 3 1 2 2 . . . 3 . . . 3 3 1 6 10 . . . 4 6 3 2 7 . Matter Fused 93 | . 4 5 2 . . 4 5 2 1 4 . . . 8 . . 2 2 8 2 4 17 . . . 5 9 3 . 6 . Heat Flow Errors 46 | . 3 3 1 . . 2 2 3 1 2 . . . 3 . . . 3 3 3 6 4 . . . 1 1 . 1 4 . Energy Discharges 37 | . 1 1 . 1 . . 5 1 2 1 . . . 2 . 1 2 2 1 3 4 4 . . . 3 2 . . 1 . Parts Rejected 5 | . . . . . . . . . . 1 . . . 1 . . . . . . 1 1 . . . . . 1 . . . Parts Fused 4 | . . . . . . . . . . . . . . . . 1 . . . . . 2 . . . . 1 . . . . Data Loss (minor) 35 | . 1 1 . 1 . 2 . 1 1 2 . . . 1 . . 1 1 7 . . 5 . . . 1 4 . 2 4 . Data Loss (major) 12 | . . 1 . . . 1 . . . . . . . 1 . 1 . . . . . 4 . . . 1 . . . 3 . Misfires 13 | . 4 . . . . . . 1 . . . . . . . . . . . 1 . 4 . . . 1 2 . . . . Alerts 5 | . . . . . . . . 1 . . . . . . . . . . 1 1 . 1 . . . . 1 . . . . Misdirections 2 | . . . . . . . . . . . . . . . . . . . . . 1 1 . . . . . . . . . Weapon Failures 9 | . . . . . . . 1 . . 1 . . . 2 . . . 1 . . . 3 . . . . 1 . . . . Overload Shots 8 | . . . . . . . . . . . . . . . . . . 6 1 . . . . . . . . . 1 . . Overflow Damage 1943 | . . . . . 59 83 9 60 24 40 . . 59 128 . 33 12 263 . 88 107 184 . 5 5 152 159 22 168 249 34 Projectiles 928 | . . . . . . . . . 24 40 . . 1 12 . . . 38 . . . 108 . 5 5 96 126 22 168 249 34 Explosions 261 | . . . . . 21 83 9 38 . . . . . 22 . 33 . . . . 1 54 . . . . . . . . . Melee 754 | . . . . . 38 . . 22 . . . . 58 94 . . 12 225 . 88 106 22 . . . 56 33 . . . . Knockbacks 8 | . . . . . 1 . . . . . . . 1 . . . . 2 . . . . 2 . . . 2 . . . . Impact 7 | . . . . . 1 . . . . . . . 1 . . . . 2 . . . . 1 . . . 2 . . . . Kinetic . | . . . . . . . . . . . . . . . . . . . . . . . . . . . . . . . . Secondary 1 | . . . . . . . . . . . . . . . . . . . . . . . 1 . . . . . . . . Self-Inflicted Damage 528 | . . . . . 33 65 . 146 . . . . . 59 . 100 . . . . 99 26 . . . . . . . . . Shots 14 | . . . . . 1 4 . 3 . . . . . 1 . 3 . . . . 1 1 . . . . . . . . . Rammed . | . . . . . . . . . . . . . . . . . . . . . . . . . . . . . . . . Targets Rammed 84 | . 12 5 . 3 9 1 2 3 6 . 1 . 2 . . 2 . 11 . . 1 1 4 . . 5 11 . 3 1 1 Kicked 84 | . 12 5 . 3 9 1 2 3 6 . 1 . 2 . . 2 . 11 . . 1 1 4 . . 5 11 . 3 1 1 Crushed . | . . . . . . . . . . . . . . . . . . . . . . . . . . . . . . . . Highest Temperature 419 | . 233 337 246 105 117 193 233 373 228 329 . 74 136 419 . 91 . 312 238 245 206 326 219 . . 300 240 . 281 210 185 Average Temperature 76 | . 67 129 129 56 38 43 64 92 88 119 . 19 53 169 . 30 . 51 66 112 58 95 76 . . 94 33 . 120 94 83 Received Heat Transfer 3243 | . 216 27 . 6 639 351 116 200 237 6 9 36 118 49 4 92 . 85 18 . 121 415 10 . 13 119 202 70 21 54 9 Effects 20 | . . 4 . . . . . 4 . 4 . . . 3 . . . . . . . 4 . . . 1 . . . . . Shutdowns 2 | . . . . . . . . 1 . . . . . 1 . . . . . . . . . . . . . . . . . Energy Bleed 5 | . . 1 . . . . . 1 . 1 . . . 1 . . . . . . . . . . . 1 . . . . . Interference 11 | . . 2 . . . . . 2 . 3 . . . . . . . . . . . 4 . . . . . . . . . Short Circuit 1 | . . . . . . . . . . . . . . 1 . . . . . . . . . . . . . . . . . Damage (minor) 1 | . . 1 . . . . . . . . . . . . . . . . . . . . . . . . . . . . . Siege Activations . | . . . . . . . . . . . . . . . . . . . . . . . . . . . . . . . . Martial Activations 23 | . . . . . . . . . . . . 1 1 4 . 5 . 6 . . 4 2 . . . . . . . . . Total Turns 468 | . . . . . . . . . . . . 18 6 110 . 95 . 88 . . 120 31 . . . . . . . . . Longest Duration 63 | . . . . . . . . . . . . 18 6 48 . 42 . 22 . . 63 16 . . . . . . . . . Shielding Activations . | . . . . . . . . . . . . . . . . . . . . . . . . . . . . . . . . Robots Disrupted 1 | . . . . . . . 1 . . . . . . . . . . . . . . . . . . . . . . . . Combat Hostiles 1 | . . . . . . . 1 . . . . . . . . . . . . . . . . . . . . . . . . Robots Corrupted 20 | . . . . . 2 . . . . . . . 2 . . . . 2 . . 1 2 4 . . 1 2 . . . 4 Combat Hostiles 12 | . . . . . 2 . . . . . . . . . . . . . . . . 2 4 . . . . . . . 4 Parts Fried 43 | . 1 . . . 6 3 5 . . . . . 2 . . . . 4 . . 3 4 4 . . . 3 . . . 8 Impact Corruptions 10 | . . . . . . . . . . . . . 2 . . . . 3 . . . . . . . 2 3 . . . . Robots Melted 14 | . . . . . . . . . . . . . . . . . . 2 . . . . 1 . . 1 4 3 . 2 1 Combat Hostiles 10 | . . . . . . . . . . . . . . . . . . 1 . . . . 1 . . 1 2 3 . 1 1 Parts Melted 75 | . . . . . . 5 . 5 2 3 . . 3 4 . 2 . 2 . . . . 2 . . 6 25 4 5 4 3 Heat Transferred 27763 | . 250 . . . 200 1702 150 1140 1150 1050 . 200 925 1147 . 1147 37 1203 333 37 370 1534 222 221 111 2460 5791 2239 1887 1517 740 Parts Sabotaged . | . . . . . . . . . . . . . . . . . . . . . . . . . . . . . . . . Parts Stolen . | . . . . . . . . . . . . . . . . . . . . . . . . . . . . . . . . Parts Stripped . | . . . . . . . . . . . . . . . . . . . . . . . . . . . . . . . . Power Chain Reactions 13 | . 2 1 . . 4 1 4 1 . . . . . . . . . . . . . . . . . . . . . . . Alert | -11 -10 -10 -10 -9 -8 -8 -8 -8 -7 -7 -6 -6 -6 -6 -5 -5 -5 -5 -5 -5 -5 -5 -4 -4 -4 -4 -3 -3 -2 -2 -1 ------- Run | Yrd Mat Min Exi Min Mat Gar Mat Gar Fac Gar Fac Gar Fac Gar Fac Gar Fac Ext Cet Arc Hub Gar Fac Was Fac Gar Res Gar Res Qua Acc Maximum Alert Level 5 | . . . . . 1 5 3 3 1 1 . 2 2 3 2 5 3 3 2 . 2 4 3 . 1 4 3 3 2 . . Low Security (%) 48 | 100 100 100 . 100 88 2 68 36 74 73 100 6 21 18 8 11 38 76 . 100 56 . . 100 99 1 9 4 77 100 100 Level 1 19 | . . . . . 11 8 . 19 25 26 . 32 70 11 79 16 21 11 66 . 29 10 . . . 8 66 20 5 . . Level 2 14 | . . . . . . 22 22 28 . . . 60 7 44 12 5 9 8 33 . 13 12 27 . . 21 19 34 16 . . Level 3 12 | . . . . . . 25 9 15 . . . . . 25 . 28 29 3 . . . 51 72 . . 48 5 39 . . . Level 4 4 | . . . . . . 29 . . . . . . . . . 20 . . . . . 25 . . . 20 . . . . . Level 5 1 | . . . . . . 10 . . . . . . . . . 17 . . . . . . . . . . . . . . . High Security . | . . . . . . . . . . . . . . . . . . . . . . . . . . . . . . . . Max Security . | . . . . . . . . . . . . . . . . . . . . . . . . . . . . . . . . Peak Influence 1754 | . 182 70 . 20 309 1622 790 736 386 346 181 674 676 831 436 1754 993 804 473 137 424 1519 836 170 200 1250 724 916 585 125 152 Initial 920 | . . 48 . . . 131 790 . 386 70 181 77 353 70 436 127 920 29 412 85 . 288 797 170 . 72 702 176 515 102 13 Average 356 | . 82 10 . 2 84 1006 287 351 96 191 145 450 282 493 311 945 442 134 347 48 180 900 708 73 89 848 366 589 182 70 67 Influence Increases 19887 | . 565 144 . 20 1018 1521 453 876 386 316 50 757 615 851 32 1767 145 1599 176 72 1685 1511 258 14 399 1538 1155 810 544 293 317 Destroy 0b10 Robot/C 9670 | . 340 120 . 20 540 840 220 560 240 140 40 280 240 440 . 880 60 660 80 20 540 820 160 . 160 770 645 270 270 120 195 Destroy 0b10 Robot/NC 339 | . 25 . . . 55 . 30 5 15 . . . 30 . . . . 60 5 15 25 . 5 . 5 4 32 . 12 4 12 Destroy Leader 1194 | . 72 20 . . 122 30 48 40 50 . . 20 32 40 . 50 10 76 . . 146 40 30 . 30 40 144 32 64 16 42 Allied During Kill 2229 | . . . . . . . 5 5 2 2 10 109 25 9 . 141 25 572 42 35 431 101 4 . 195 302 92 10 104 . 8 Successful Hack 462 | . 17 . . . 53 16 16 10 11 14 . 35 . . 30 37 32 7 . . 36 6 6 . 3 14 64 . 22 33 . Select Force Hacks 60 | . 60 . . . . . . . . . . . . . . . . . . . . . . . . . . . . . . Disable Machine 858 | . 15 . . . 45 . 15 . 15 . . . 180 . . 15 . 105 15 . 255 15 15 . . . 24 . 36 72 36 Anti-Garrison Action 2455 | . . . . . . 500 . 150 . 100 . 250 . 250 . 350 . . . . . 300 . . . 251 . 304 . . . Destroy Structure 1696 | . 6 4 . . 23 105 29 106 8 45 . 63 78 52 2 144 18 44 34 2 252 169 8 14 6 112 106 158 36 48 24 Partial Spotted 60 | . . . . . . . 15 . . . . . . . . 15 . . . . . 15 15 . . . . . . . . Lose Combat Pursuer 864 | . 30 . . . 180 30 75 . 45 15 . . 30 60 . 135 . 75 . . . 45 15 . . 45 48 36 . . . Influence Decreases 19771 | . 440 269 . 20 816 101 2075 140 1021 71 285 194 1189 120 681 195 1838 924 698 286 1273 404 1291 500 295 392 2170 129 1277 453 224 Entered New Map 5973 | . . 77 . . . 71 832 . 350 31 165 34 321 30 395 55 834 32 324 129 . 124 722 316 . 32 548 59 401 81 10 Time Decay 6964 | . 420 192 . 20 518 . 618 . 492 . 110 . 318 . 286 . 374 458 294 157 472 . 254 184 295 . 672 . 276 362 192 Lost Part 529 | . 20 . . . 20 20 . 110 29 20 10 . . 20 . . . 20 . . 40 100 . . . 20 30 40 . 10 20 Lost Ally 1772 | . . . . . . 10 40 30 . 20 . 160 50 70 . 140 30 114 80 . 186 180 40 . . 340 170 30 80 . 2 Purge Threat 4533 | . . . . . 278 . 585 . 150 . . . 500 . . . 600 300 . . 575 . 275 . . . 750 . 520 . . Squads Dispatched 55 | . 4 . . . 3 . 1 . 7 . . . 4 . 1 . 2 1 . . 8 . 3 . 1 . 14 . 3 2 1 Investigation 8 | . 3 . . . . . . . 1 . . . . . 1 . . . . . . . . . . . 3 . . . . Extermination 20 | . . . . . . . . . 4 . . . 1 . . . 1 . . . 3 . 1 . 1 . 5 . 2 2 . Reinforcement 21 | . 1 . . . 2 . 1 . 2 . . . 3 . . . 1 1 . . 4 . 2 . . . 2 . 1 . 1 Assault 2 | . . . . . . . . . . . . . . . . . . . . . 1 . . . . . 1 . . . . Garrison 4 | . . . . . 1 . . . . . . . . . . . . . . . . . . . . . 3 . . . . Intercept . | . . . . . . . . . . . . . . . . . . . . . . . . . . . . . . . . Searches Triggered . | . . . . . . . . . . . . . . . . . . . . . . . . . . . . . . . . Construction Impeded 4 | . . . . . 1 . . . . . . . 1 . . . . . . . . . . . . . 1 . . . 1 Haulers Reinforced 3 | . . . . . . . . . 1 . . . . . . . . . . . 1 . 1 . . . . . . . . Active Scanning Responses . | . . . . . . . . . . . . . . . . . . . . . . . . . . . . . . . . Cargo Convoy Interrupts . | . . . . . . . . . . . . . . . . . . . . . . . . . . . . . . . . Stealth | -11 -10 -10 -10 -9 -8 -8 -8 -8 -7 -7 -6 -6 -6 -6 -5 -5 -5 -5 -5 -5 -5 -5 -4 -4 -4 -4 -3 -3 -2 -2 -1 --------- Run | Yrd Mat Min Exi Min Mat Gar Mat Gar Fac Gar Fac Gar Fac Gar Fac Gar Fac Ext Cet Arc Hub Gar Fac Was Fac Gar Res Gar Res Qua Acc Distress Signals 32 | . 3 . . . 5 . 5 2 . . 1 . 1 . . . . 4 . . 3 1 . . . . 5 . 1 . 1 Communications Jammed 55 | . . . . . . . . . . . . . . . . . . 1 . . 24 28 . . . . 2 . . . . Distress Signals 50 | . . . . . . . . . . . . . . . . . . 1 . . 19 28 . . . . 2 . . . . Times Spotted 778 | . 35 6 . 1 52 42 24 34 32 13 5 28 20 35 3 45 8 48 5 3 42 61 24 1 4 46 73 32 20 13 23 Peak Tracking Total 12 | . 5 3 . . 5 7 4 5 3 6 3 6 3 5 1 8 3 6 5 1 6 12 8 1 2 8 8 7 4 3 7 Tactical Retreats 36 | . 1 . . . 7 2 3 . 3 1 . . 2 4 . 2 . 5 . . . 1 1 . . 2 1 1 . . . Traps | -11 -10 -10 -10 -9 -8 -8 -8 -8 -7 -7 -6 -6 -6 -6 -5 -5 -5 -5 -5 -5 -5 -5 -4 -4 -4 -4 -3 -3 -2 -2 -1 ------- Run | Yrd Mat Min Exi Min Mat Gar Mat Gar Fac Gar Fac Gar Fac Gar Fac Gar Fac Ext Cet Arc Hub Gar Fac Was Fac Gar Res Gar Res Qua Acc Traps Triggered 52 | . 3 . . . 1 8 1 . 3 5 . 7 1 1 . 4 . 3 . . . 3 1 . 5 3 3 . . . . Indirectly . | . . . . . . . . . . . . . . . . . . . . . . . . . . . . . . . . Trap Hack Attempts . | . . . . . . . . . . . . . . . . . . . . . . . . . . . . . . . . Triggered . | . . . . . . . . . . . . . . . . . . . . . . . . . . . . . . . . Disarmed . | . . . . . . . . . . . . . . . . . . . . . . . . . . . . . . . . Reprogrammed . | . . . . . . . . . . . . . . . . . . . . . . . . . . . . . . . . Reused . | . . . . . . . . . . . . . . . . . . . . . . . . . . . . . . . . Traps Extracted . | . . . . . . . . . . . . . . . . . . . . . . . . . . . . . . . . Installed . | . . . . . . . . . . . . . . . . . . . . . . . . . . . . . . . . Triggered . | . . . . . . . . . . . . . . . . . . . . . . . . . . . . . . . . Machines | -11 -10 -10 -10 -9 -8 -8 -8 -8 -7 -7 -6 -6 -6 -6 -5 -5 -5 -5 -5 -5 -5 -5 -4 -4 -4 -4 -3 -3 -2 -2 -1 ---------- Run | Yrd Mat Min Exi Min Mat Gar Mat Gar Fac Gar Fac Gar Fac Gar Fac Gar Fac Ext Cet Arc Hub Gar Fac Was Fac Gar Res Gar Res Qua Acc Machines Disabled 101 | . 1 . . . 3 5 1 1 1 2 . 6 12 5 . 5 . 8 1 . 17 6 1 . . 4 2 8 3 6 3 Max in Single Turn 11 | . 1 . . . 2 1 1 1 1 1 . 2 . 1 . 1 . 1 1 . 11 1 1 . . 1 1 1 1 1 1 Garrison Access 3 | . . . . . . . . . . . . . . . . . 1 . . . . . 1 . . . 1 . . . . Garrison Relay 34 | . . . . . . 4 . 1 . 2 . 3 . 4 . 5 . . . . . 4 . . . 5 . 6 . . . Phase Generator 2 | . . . . . . . . . . . . 1 . . . . . . . . . . . . . . . 1 . . . Network Hub 3 | . . . . . . . . . . . . . . . . . . . . . 3 . . . . . . . . . . Energy Cycler 1 | . . . . . . . . . . . . . . . . . . 1 . . . . . . . . . . . . . Machines Repaired . | . . . . . . . . . . . . . . . . . . . . . . . . . . . . . . . . Machines Dismantled . | . . . . . . . . . . . . . . . . . . . . . . . . . . . . . . . . Machines Sabotaged . | . . . . . . . . . . . . . . . . . . . . . . . . . . . . . . . . Overloaded Fab Kills . | . . . . . . . . . . . . . . . . . . . . . . . . . . . . . . . . Hacking | -11 -10 -10 -10 -9 -8 -8 -8 -8 -7 -7 -6 -6 -6 -6 -5 -5 -5 -5 -5 -5 -5 -5 -4 -4 -4 -4 -3 -3 -2 -2 -1 --------- Run | Yrd Mat Min Exi Min Mat Gar Mat Gar Fac Gar Fac Gar Fac Gar Fac Gar Fac Ext Cet Arc Hub Gar Fac Was Fac Gar Res Gar Res Qua Acc Machines Accessed 113 | . 8 . 2 . 10 3 8 2 7 2 1 4 2 2 4 4 7 5 1 . 7 3 2 . 1 3 15 2 4 4 . Terminals 80 | . 6 . . . 8 3 6 2 4 2 . 4 1 2 3 4 3 5 1 . 6 3 1 . . 3 7 2 3 1 . Fabricators 3 | . . . . . . . . . 1 . . . . . . . 1 . . . . . . . . . 1 . . . . Repair Stations 4 | . . . . . . . . . . . . . . . . . 1 . . . . . . . . . 1 . . 2 . Recycling Units 3 | . 2 . . . . . . . 1 . . . . . . . . . . . . . . . . . . . . . . Scanalyzers 9 | . . . . . 1 . 1 . . . . . . . . . 1 . . . . . . . . . 4 . 1 1 . Garrison Access 12 | . . . . . 1 . 1 . 1 . 1 . 1 . 1 . 1 . . . 1 . 1 . 1 . 2 . . . . Total Hacks 300 | . 15 . 2 . 26 7 20 4 17 4 2 9 5 4 10 5 17 9 1 . 24 11 5 . 4 8 54 7 16 14 . Successful 124 | . 7 . 2 . 15 1 10 1 9 2 2 3 3 . 5 3 7 4 . . 9 2 3 . 3 1 21 . 4 7 . Failed 172 | . 8 . . . 11 6 9 3 8 2 . 6 2 4 5 2 10 5 1 . 15 9 2 . 1 7 32 7 11 6 . Catastrophic 44 | . . . . . 3 2 2 1 3 . . . 1 2 . . 1 2 1 . 3 5 1 . . 1 10 3 2 1 . Database Lockouts 4 | . . . . . . . 1 . . . . . . . . . . . . . . . . . . . 1 . 1 1 . Manual 130 | . 11 . 1 . 19 2 12 . 7 . . . 3 . 6 . 7 3 1 . 18 7 3 . 2 1 21 1 1 4 . Terminals 210 | . 13 . . . 22 7 14 4 13 4 . 9 1 4 7 5 8 9 1 . 23 11 3 . . 8 29 7 7 1 . Fabricators 4 | . . . . . . . . . 1 . . . . . . . 2 . . . . . . . . . 1 . . . . Repair Stations 19 | . . . . . . . . . . . . . . . . . 3 . . . . . . . . . 7 . . 9 . Recycling Units 4 | . 2 . . . . . . . 2 . . . . . . . . . . . . . . . . . . . . . . Scanalyzers 36 | . . . . . 3 . 5 . . . . . . . . . 2 . . . . . . . . . 13 . 9 4 . Garrison Access 25 | . . . . . 1 . 1 . 1 . 2 . 4 . 3 . 2 . . . 1 . 2 . 4 . 4 . . . . Terminal Hacks 55 | . 5 . 2 . 4 1 4 1 6 2 . 3 . . 2 3 2 4 . . 5 2 . . . 1 5 . 3 . . Record 1 | . . . 1 . . . . . . . . . . . . . . . . . . . . . . . . . . . . Robot Schematic 3 | . 1 . . . 1 . . . 1 . . . . . . . . . . . . . . . . . . . . . . Robot Analysis 1 | . . . . . . . . . 1 . . . . . . . . . . . . . . . . . . . . . . Prototype ID Bank 4 | . 3 . . . 1 . . . . . . . . . . . . . . . . . . . . . . . . . . Open Door 7 | . . . . . . . . . . 1 . 1 . . . 1 . 2 . . . 1 . . . . . . 1 . . Level Access Points 1 | . . . . . . . . . . . . . . . . . . . . . . . . . . . 1 . . . . Branch Access Points 2 | . . . . . . . . . . . . . . . . . 1 . . . . . . . . . . . 1 . . Emergency Access Points 4 | . . . . . . . . . . . . 1 . . . 1 . . . . . 1 . . . 1 . . . . . Terminal Index 1 | . . . . . . . . . . . . . . . . . . . . . . . . . . . 1 . . . . Unreport Threat 15 | . . . . . 2 . 4 . 1 . . . . . . . 1 2 . . 2 . . . . . 2 . 1 . . Locate Traps 2 | . 1 . . . . . . . 1 . . . . . . . . . . . . . . . . . . . . . . Hauler Manifests 2 | . . . . . . . . . . . . . . . 1 . . . . . . . . . . . 1 . . . . Registered Components 1 | . . . . . . . . . . . . . . . . . . . . . 1 . . . . . . . . . . Zone Layout 5 | . . . . . . . . . 2 . . . . . 1 . . . . . 2 . . . . . . . . . . Garrison Registry 2 | . . . . . . . . 1 . 1 . . . . . . . . . . . . . . . . . . . . . Patrol Navigation 1 | . . . . . . . . . . . . 1 . . . . . . . . . . . . . . . . . . . Security Stations 2 | . . . . . . 1 . . . . . . . . . 1 . . . . . . . . . . . . . . . Proto ID Catalog 1 | . . . 1 . . . . . . . . . . . . . . . . . . . . . . . . . . . . Fabricator Hacks 1 | . . . . . . . . . . . . . . . . . 1 . . . . . . . . . . . . . . Network Status 1 | . . . . . . . . . . . . . . . . . 1 . . . . . . . . . . . . . . Repair Station Hacks 10 | . . . . . . . . . . . . . . . . . . . . . . . . . . . 4 . . 6 . Scan Component 5 | . . . . . . . . . . . . . . . . . . . . . . . . . . . 2 . . 3 . Repair 5 | . . . . . . . . . . . . . . . . . . . . . . . . . . . 2 . . 3 . Recycling Unit Hacks 2 | . . . . . . . . . 2 . . . . . . . . . . . . . . . . . . . . . . Process 1 | . . . . . . . . . 1 . . . . . . . . . . . . . . . . . . . . . . Retrieve Matter 1 | . . . . . . . . . 1 . . . . . . . . . . . . . . . . . . . . . . Scanalyzer 11 | . . . . . 2 . 3 . . . . . . . . . . . . . . . . . . . 4 . 1 1 . Retrieve Study 11 | . . . . . 2 . 3 . . . . . . . . . . . . . . . . . . . 4 . 1 1 . Garrison Access Hacks 20 | . . . . . 1 . 1 . 1 . 2 . 2 . 2 . 2 . . . 1 . 2 . 2 . 4 . . . . Unlock Access 9 | . . . . . 1 . 1 . 1 . 1 . 1 . 1 . . . . . 1 . . . 1 . 1 . . . . Seal Access 3 | . . . . . . . . . . . . . . . . . 1 . . . . . 1 . . . 1 . . . . Coupler Status 8 | . . . . . . . . . . . 1 . 1 . 1 . 1 . . . . . 1 . 1 . 2 . . . . Unauthorized Hacks 25 | . 2 . . . 8 . 2 . . . . . 1 . 1 . 2 . . . 3 . 1 . 1 . 4 . . . . Terminals 18 | . . . . . 8 . 2 . . . . . . . 1 . 1 . . . 3 . 1 . . . 2 . . . . Track 1 | . . . . . . . . . . . . . . . . . . . . . 1 . . . . . . . . . . Assimilate 3 | . . . . . 1 . 1 . . . . . . . . . . . . . 1 . . . . . . . . . . Botnet 3 | . . . . . 1 . 1 . . . . . . . . . . . . . . . . . . . 1 . . . . Operators 6 | . . . . . 1 . . . . . . . . . 1 . 1 . . . 1 . 1 . . . 1 . . . . Skim 5 | . . . . . 5 . . . . . . . . . . . . . . . . . . . . . . . . . . Fabricators 2 | . . . . . . . . . . . . . . . . . 1 . . . . . . . . . 1 . . . . Haulers 1 | . . . . . . . . . . . . . . . . . 1 . . . . . . . . . . . . . . Recompile 1 | . . . . . . . . . . . . . . . . . . . . . . . . . . . 1 . . . . Repair Stations 1 | . . . . . . . . . . . . . . . . . . . . . . . . . . . 1 . . . . Mechanics 1 | . . . . . . . . . . . . . . . . . . . . . . . . . . . 1 . . . . Recycling Units 2 | . 2 . . . . . . . . . . . . . . . . . . . . . . . . . . . . . . Tunnel 2 | . 2 . . . . . . . . . . . . . . . . . . . . . . . . . . . . . . Scanalyzers . | . . . . . . . . . . . . . . . . . . . . . . . . . . . . . . . . Garrison Access 2 | . . . . . . . . . . . . . 1 . . . . . . . . . . . 1 . . . . . . Broadcast 1 | . . . . . . . . . . . . . 1 . . . . . . . . . . . . . . . . . . Restock 1 | . . . . . . . . . . . . . . . . . . . . . . . . . 1 . . . . . . Data Cores Recovered 2 | . . . . . . . . . . . . . . . . . . 2 . . . . . . . . . . . . . Used 2 | . . . . . . . . . . . . . . . . . . 2 . . . . . . . . . . . . . Hacking Detections 81 | . 6 . . . 10 3 5 2 6 . . 3 2 2 4 2 5 3 1 . 5 3 1 . . 2 9 1 3 3 . Full Trace Events 8 | . . . . . . 2 . . . . . 1 . 1 1 1 . . . . . . . . . . 1 1 . . . Feedback Events 1 | . . . . . . . . . . . . . . . . 1 . . . . . . . . . . . . . . . Corruption 1 | . . . . . . . . . . . . . . . . 1 . . . . . . . . . . . . . . . Feedback Blocked . | . . . . . . . . . . . . . . . . . . . . . . . . . . . . . . . . Robot Schematics Acquired 3 | . 1 . . . 1 . . . 1 . . . . . . . . . . . . . . . . . . . . . . Robots Built . | . . . . . . . . . . . . . . . . . . . . . . . . . . . . . . . . Authchips . | . . . . . . . . . . . . . . . . . . . . . . . . . . . . . . . . Time . | . . . . . . . . . . . . . . . . . . . . . . . . . . . . . . . . Total Robot Build Rating . | . . . . . . . . . . . . . . . . . . . . . . . . . . . . . . . . Part Schematics Acquired . | . . . . . . . . . . . . . . . . . . . . . . . . . . . . . . . . Parts Built . | . . . . . . . . . . . . . . . . . . . . . . . . . . . . . . . . Authchips . | . . . . . . . . . . . . . . . . . . . . . . . . . . . . . . . . Time . | . . . . . . . . . . . . . . . . . . . . . . . . . . . . . . . . Total Part Build Rating . | . . . . . . . . . . . . . . . . . . . . . . . . . . . . . . . . Part Studies Acquired 10 | . . . . . 2 . 2 . . . . . . . . . . . . . . . . . . . 4 . 1 1 . Parts Repaired 5 | . . . . . . . . . . . . . . . . . . . . . . . . . . . 2 . . 3 . Time 398 | . . . . . . . . . . . . . . . . . . . . . . . . . . . 167 . . 231 . Parts Recycled . | . . . . . . . . . . . . . . . . . . . . . . . . . . . . . . . . Recycled Matter 70 | . . . . . . . . . 70 . . . . . . . . . . . . . . . . . . . . . . Retrieved Matter 70 | . . . . . . . . . 70 . . . . . . . . . . . . . . . . . . . . . . Retrieved Components . | . . . . . . . . . . . . . . . . . . . . . . . . . . . . . . . . Parts Scanalyzed . | . . . . . . . . . . . . . . . . . . . . . . . . . . . . . . . . Part Schematics Acquired . | . . . . . . . . . . . . . . . . . . . . . . . . . . . . . . . . Parts Damaged . | . . . . . . . . . . . . . . . . . . . . . . . . . . . . . . . . Bothacking | -11 -10 -10 -10 -9 -8 -8 -8 -8 -7 -7 -6 -6 -6 -6 -5 -5 -5 -5 -5 -5 -5 -5 -4 -4 -4 -4 -3 -3 -2 -2 -1 ------------ Run | Yrd Mat Min Exi Min Mat Gar Mat Gar Fac Gar Fac Gar Fac Gar Fac Gar Fac Ext Cet Arc Hub Gar Fac Was Fac Gar Res Gar Res Qua Acc Used RIF Installer 9 | . . . . . . 1 . 1 . 1 . 1 . 1 . 1 . . . . . 1 . . . 1 . 1 . . . Hotswap 1 | . . . . . . . . . . 1 . . . . . . . . . . . . . . . . . . . . . Code Merge 1 | . . . . . . . . . . . . . . . . . . . . . . 1 . . . . . . . . . Threat Obfuscator 1 | . . . . . . . . . . . . . . . . . . . . . . . . . . 1 . . . . . Zone Cloak 1 | . . . . . . . . . . . . 1 . . . . . . . . . . . . . . . . . . . Robot Detection 1 | . . . . . . . . 1 . . . . . . . . . . . . . . . . . . . . . . . Watcher Feeds 1 | . . . . . . . . . . . . . . . . 1 . . . . . . . . . . . . . . . Patrol Navigation 1 | . . . . . . . . . . . . . . 1 . . . . . . . . . . . . . . . . . Autooverride 1 | . . . . . . . . . . . . . . . . . . . . . . . . . . . . 1 . . . Robots Hacked 167 | . . . . . . . 4 4 12 4 4 9 12 12 2 3 2 2 . 3 9 12 12 . 4 8 19 10 8 4 8 Non-combat 43 | . . . . . . . . . 5 . 2 1 5 1 . . 2 . . . 1 . 7 . 3 . 7 . 5 2 2 Combat 124 | . . . . . . . 4 4 7 4 2 8 7 11 2 3 . 2 . 3 8 12 5 . 1 8 12 10 3 2 6 Autooverrided 4 | . . . . . . . . . . . . . . . . . . . . . . . . . . . . 1 1 . 2 Robot Hacks Applied 189 | . . . . . . . 4 4 13 4 4 9 17 12 2 3 5 2 . 3 12 13 14 . 5 9 24 9 10 4 7 parse_system 15 | . . . . . . . . . . . . 1 1 . . 2 . . . . 4 1 1 . 2 1 . . . 1 1 find_chute 1 | . . . . . . . . . . . . . . . . . . . . . . . 1 . . . . . . . . map_earth 1 | . . . . . . . . . . . 1 . . . . . . . . . . . . . . . . . . . . find_fabricator 1 | . . . . . . . . . . . . . . . . . . . . . . . 1 . . . . . . . . drop_inventory 17 | . . . . . . . . . 3 . 1 . . . . . 1 . . . . . 2 . 2 . 4 . 3 1 . find_recycling 1 | . . . . . . . . . . . . . 1 . . . . . . . . . . . . . . . . . . purge_threat 20 | . . . . . . . . . . . . . 5 . . . 4 . . . 2 . 2 . . . 4 . 3 . . block_reporting 3 | . . . . . . . . . 1 . . . . . . . . . . . . . 1 . . . 1 . . . . map_route 2 | . . . . . . . . . . . . . . . . . . . . . . . . . . . . . . . 2 find_garrison 3 | . . . . . . . . . 1 . . . . . . . . . . . 1 . . . 1 . . . . . . amplify_resonance 43 | . . . . . . . . 1 2 1 . 4 3 4 . 1 . . . . 3 5 2 . . 3 5 7 . 1 1 reboot_system 1 | . . . . . . . . 1 . . . . . . . . . . . . . . . . . . . . . . . overwrite_iff 33 | . . . . . . . 1 1 4 1 1 . 4 2 . . . 1 . . 1 3 2 . . 2 6 2 . . 2 formatsys_low 12 | . . . . . . . . . 2 . . . 3 1 . . . . . . . . 1 . . . 2 . 2 1 . formatsys_high 36 | . . . . . . . 3 1 . 2 1 4 . 5 2 . . 1 . 3 1 4 1 . . 3 2 . 2 . 1 Relay Couplers Released 147 | . . . . . . 18 . 4 3 7 . 14 . 14 . 17 1 . . . . 15 2 . 3 20 3 26 . . . Machine Destruction 141 | . . . . . . 18 . 4 . 7 . 14 . 14 . 17 1 . . . . 15 2 . . 20 3 26 . . . Programmers 6 | . . . . . . . . . 3 . . . . . . . . . . . . . . . 3 . . . . . . Attached 57 | . . . . . . . 3 1 3 4 1 4 1 6 1 4 . . 1 1 1 7 2 . . 6 3 5 2 . 1 Merged Code Value 129 | . . . . . . . . . . . . . . . . . . . . . . 30 . . . 43 . 47 . 9 . Fabnet Peak Effective % . | . . . . . . . . . . . . . . . . . . . . . . . . . . . . . . . . Robots Rewired 27 | . . . . . . . . . . . . 2 . . . 6 . 8 . . . . 1 . . 7 . 3 . . . Allies Hacked 2 | . . . . . . . . . . . . . . . . . . . . . 1 . . . . . . . 1 . . Hacks Repelled . | . . . . . . . . . . . . . . . . . . . . . . . . . . . . . . . . Allies | -11 -10 -10 -10 -9 -8 -8 -8 -8 -7 -7 -6 -6 -6 -6 -5 -5 -5 -5 -5 -5 -5 -5 -4 -4 -4 -4 -3 -3 -2 -2 -1 -------- Run | Yrd Mat Min Exi Min Mat Gar Mat Gar Fac Gar Fac Gar Fac Gar Fac Gar Fac Ext Cet Arc Hub Gar Fac Was Fac Gar Res Gar Res Qua Acc Total Allies 160 | . . . . . 1 . 5 2 6 4 2 8 7 8 2 9 . 22 5 3 2 9 5 20 . 13 10 6 5 1 5 Largest Group 21 | . . . . . 1 1 4 2 2 2 3 6 4 3 5 8 5 16 9 11 12 4 2 21 19 16 7 4 6 1 2 Highest-Rated Group 822 | . . . . . 10 10 72 41 19 63 95 285 209 87 185 262 164 589 734 773 822 200 94 805 705 608 364 232 289 62 219 Highest-Rated Ally 219 | . . . . . 10 10 26 26 16 32 32 109 93 40 49 95 51 159 159 153 96 85 64 50 47 62 56 64 64 62 219 Total Orders 43 | . . . . . . 3 7 3 . . . 1 1 3 1 9 2 . . . 8 . 1 . . . 3 . 1 . . STAY 26 | . . . . . . 2 6 2 . . . . . 2 . 6 1 . . . 6 . . . . . 1 . . . . FOLLOW 8 | . . . . . . 1 1 1 . . . . . . . 2 1 . . . 2 . . . . . . . . . . AID 8 | . . . . . . . . . . . . . 1 1 1 1 . . . . . . 1 . . . 2 . 1 . . DROP 1 | . . . . . . . . . . . . 1 . . . . . . . . . . . . . . . . . . . Ally Attacks 954 | . . . . . . . 15 10 16 13 11 48 16 16 . 74 16 175 26 10 95 56 8 5 73 141 71 7 42 1 9 Total Damage 26921 | . . . . . . . 312 184 188 138 258 1486 1169 438 . 2490 319 3979 966 280 3179 1401 239 231 1491 3481 2477 277 1416 . 522 Kills 182 | . . . . . . . 3 3 2 2 2 11 9 4 . 15 3 23 5 1 20 11 2 1 8 27 16 2 11 . 1 Allies Corrupted 8 | . . . . . . . . . . . . . . . . . . . . . 3 1 1 . 1 . 1 . 1 . . Allies Melted 4 | . . . . . . 1 . . . . . . . . . . . . . . 1 1 . . . . 1 . . . . Intel | -11 -10 -10 -10 -9 -8 -8 -8 -8 -7 -7 -6 -6 -6 -6 -5 -5 -5 -5 -5 -5 -5 -5 -4 -4 -4 -4 -3 -3 -2 -2 -1 ------- Run | Yrd Mat Min Exi Min Mat Gar Mat Gar Fac Gar Fac Gar Fac Gar Fac Gar Fac Ext Cet Arc Hub Gar Fac Was Fac Gar Res Gar Res Qua Acc Active Infowar (turns) 8736 | . . . . . . . . . . . . . . . 599 359 . 534 627 . 1206 72 398 440 755 733 525 772 445 835 436 Optics 1691 | . . . . . . . . . . . . . . . . . . . . . . . . . . . . . 420 835 436 Terrain 544 | . . . . . . . . . . . . . . . . . . . . . . . . . . . . . 80 323 141 Jamming 7050 | . . . . . . . . . . . . . . . 599 359 . 534 627 . 1206 72 398 440 755 733 525 772 25 . 5 Robot Analysis Total 1 | . . . . . . . . . 1 . . . . . . . . . . . . . . . . . . . . . . Derelict Logs Recovered 2 | . . 2 . . . . . . . . . . . . . . . . . . . . . . . . . . . . . Drone Launches . | . . . . . . . . . . . . . . . . . . . . . . . . . . . . . . . . Drone Recoveries . | . . . . . . . . . . . . . . . . . . . . . . . . . . . . . . . . Exploration | -11 -10 -10 -10 -9 -8 -8 -8 -8 -7 -7 -6 -6 -6 -6 -5 -5 -5 -5 -5 -5 -5 -5 -4 -4 -4 -4 -3 -3 -2 -2 -1 ------------- Run | Yrd Mat Min Exi Min Mat Gar Mat Gar Fac Gar Fac Gar Fac Gar Fac Gar Fac Ext Cet Arc Hub Gar Fac Was Fac Gar Res Gar Res Qua Acc Turns Passed 36223 | 55 1802 1173 587 271 3259 2021 2143 1617 1885 720 235 1052 707 1189 631 1462 867 1585 650 513 1595 1352 551 440 755 1391 2615 1130 699 835 436 Spaces Moved 19308 | 39 830 596 266 98 1214 965 1037 689 1032 340 161 764 495 777 200 1014 540 1055 108 119 1037 902 366 207 181 922 1528 747 455 393 231 Core 3 | 3 . . . . . . . . . . . . . . . . . . . . . . . . . . . . . . . Treads . | . . . . . . . . . . . . . . . . . . . . . . . . . . . . . . . . Legs 19305 | 36 830 596 266 98 1214 965 1037 689 1032 340 161 764 495 777 200 1014 540 1055 108 119 1037 902 366 207 181 922 1528 747 455 393 231 Wheels . | . . . . . . . . . . . . . . . . . . . . . . . . . . . . . . . . Hover . | . . . . . . . . . . . . . . . . . . . . . . . . . . . . . . . . Flight . | . . . . . . . . . . . . . . . . . . . . . . . . . . . . . . . . Fastest Speed 50 | 50 120 190 190 260 175 178 175 101 107 107 107 103 105 105 106 108 108 105 107 107 103 104 113 112 113 116 106 106 113 106 106 Average Speed 136 | 114 189 190 218 260 178 179 181 191 150 169 107 106 105 109 107 110 108 109 109 107 114 111 113 112 119 116 112 109 113 121 106 Slowest Speed 260 | 120 190 190 260 260 190 182 182 257 257 182 180 210 210 210 108 216 108 216 110 107 214 216 113 113 190 116 186 112 113 171 106 Overloaded Moves 87 | . . . . . . . . . . . . 4 2 24 . 21 . 9 . . 23 4 . . . . . . . . . Propulsion Burnouts . | . . . . . . . . . . . . . . . . . . . . . . . . . . . . . . . . Robots Hopped 1 | . . . . . . . . . . . . . . . . . . . . . . . . . . 1 . . . . . Potential Cave-ins 1 | . . . . . . . . . . . . . . . . . . . . . . 1 . . . . . . . . . Cave-ins Triggered . | . . . . . . . . . . . . . . . . . . . . . . . . . . . . . . . . Exploration Rate (%) 54 | 3 96 99 60 21 60 84 51 56 25 56 6 89 14 91 9 91 17 90 58 78 78 92 16 89 6 91 56 85 20 56 10 Regions Visited 31 Branch Regions 8 Pre-discovered Areas 8 | . 2 1 1 . 4 . . . . . . . . . . . . . . . . . . . . . . . . . . Known Exits Taken 11 | . . . . . 1 . 1 . 1 . 1 . 1 . 1 . 1 . . . 1 . . . 1 . 1 . 1 . . Unknown Exits Taken 9 | 1 1 1 1 1 . . . . . . . . . . . . . 1 1 1 . . . . . . . . . 1 . Scrap Searched 2 | . . 2 . . . . . . . . . . . . . . . . . . . . . . . . . . . . . Spaces Dug 95 | . . . . . 9 11 4 1 4 . . . 1 9 1 . 3 3 . . 10 1 2 . 2 1 19 1 6 5 2 Terrain Destroyed 801 | . 6 4 . . 26 78 34 44 7 . . 76 11 27 1 19 5 13 3 . 177 56 2 1 5 31 50 93 10 14 8 Melee 44 | . . . . . 7 11 4 1 . . . . . 9 1 . . 1 . . 10 . . . . . . . . . . Projectile 225 | . . . . . 4 . . 2 7 . . . 11 . . . 5 12 3 . 3 31 2 1 5 31 50 26 10 14 8 AOE 532 | . 6 4 . . 15 67 30 41 . . . 76 . 18 . 19 . . . . 164 25 . . . . . 67 . . . Terrain Rammed . | . . . . . . . . . . . . . . . . . . . . . . . . . . . . . . . . Walls Destroyed . | . . . . . . . . . . . . . . . . . . . . . . . . . . . . . . . . Machines Disabled . | . . . . . . . . . . . . . . . . . . . . . . . . . . . . . . . . Actions | -11 -10 -10 -10 -9 -8 -8 -8 -8 -7 -7 -6 -6 -6 -6 -5 -5 -5 -5 -5 -5 -5 -5 -4 -4 -4 -4 -3 -3 -2 -2 -1 --------- Run | Yrd Mat Min Exi Min Mat Gar Mat Gar Fac Gar Fac Gar Fac Gar Fac Gar Fac Ext Cet Arc Hub Gar Fac Was Fac Gar Res Gar Res Qua Acc Total 27435 | 46 968 613 273 105 2080 1160 1221 879 1237 429 222 963 635 992 614 1253 803 1385 624 500 1358 1186 502 412 717 1242 2408 947 565 680 416 Wait 4907 | 1 41 1 . 2 673 25 111 41 63 8 33 78 74 62 399 81 235 117 503 369 174 45 51 189 506 113 535 56 27 212 82 Move 19282 | 38 829 595 265 97 1214 964 1037 688 1032 339 161 763 494 776 200 1013 539 1054 107 118 1037 901 366 206 180 919 1528 746 454 392 230 Hop 1 | . . . . . . . . . . . . . . . . . . . . . . . . . . 1 . . . . . Pick Up 220 | 1 17 1 3 . 10 17 3 19 7 6 3 11 1 11 4 9 . 1 . . 11 26 6 . 1 11 17 11 5 7 1 Fast Attach 99 | 6 1 . 2 . 5 2 3 3 5 2 5 3 . 4 . . . 10 2 3 2 7 1 3 9 1 7 4 2 4 3 Attach 111 | . 2 . . . 6 11 2 16 4 2 1 . 1 3 3 1 . 1 . 1 5 18 5 . 2 4 9 6 3 1 4 Detach 37 | . 1 . . . . 1 3 6 . . 1 . . . . . . 2 . 1 1 8 1 . . 2 . 3 2 1 4 Swap 418 | . 11 . 1 . 26 27 10 16 26 12 2 19 16 27 3 26 2 19 3 1 23 31 12 2 3 13 32 21 11 10 13 Drop 204 | . 11 1 2 . 16 23 5 11 5 2 9 13 3 3 1 14 . 4 2 . 11 16 7 3 3 6 12 7 6 8 . Fire 1613 | . 43 10 . 3 111 45 38 65 77 39 5 34 41 65 3 60 23 47 7 4 28 126 49 8 13 158 256 81 52 44 78 Melee 215 | . . . . . 10 19 5 10 . . . 6 2 37 1 22 4 25 . 3 65 6 . . . . . . . . . Ram . | . . . . . . . . . . . . . . . . . . . . . . . . . . . . . . . . Kick 84 | . 12 5 . 3 9 1 2 3 6 . 1 . 2 . . 2 . 11 . . 1 1 4 . . 5 11 . 3 1 1 Crush . | . . . . . . . . . . . . . . . . . . . . . . . . . . . . . . . . Escape Stasis 88 | . . . . . . 25 . . 10 18 . 17 . 3 . 8 . . . . . 1 . . . 6 . . . . . Rewire 156 | . . . . . . . 2 1 2 1 1 19 1 1 . 17 . 94 . . . . . 1 . 3 1 12 . . . Trap . | . . . . . . . . . . . . . . . . . . . . . . . . . . . . . . . . Miscellaneous . | . . . . . . . . . . . . . . . . . . . . . . . . . . . . . . . . Route ------- -11/Scrapyard -10/Materials (discovered 4 exits: [*Mat x3] / [*Min]) -10/Mines (discovered 4 exits: [*Mat x2] / *Exi / [*Sub]) -10/Exiles -9/Mines -8/Materials (discovered 5 exits: *Fac x3 / [*Sto] / Gar) -8/Garrison (discovered 3 exits: *Mat x3) -8/Materials -8/Garrison (discovered 3 exits: *Fac x3) -7/Factory (discovered 6 exits: *Fac x3 / *Low x2 / Gar) -7/Garrison (discovered 3 exits: *Fac x3) -6/Factory -6/Garrison (discovered 3 exits: *Fac x3) -6/Factory -6/Garrison (discovered 3 exits: *Fac x3) -5/Factory -5/Garrison (discovered 3 exits: *Fac x3) -5/Factory (discovered 4 exits: *Upp x2 / *Ext x2) -5/Extension (discovered 2 exits: *Fac / *Cet) -5/Cetus -5/Archives (discovered 2 exits: *Hub x2) -5/Hub_04(d) (discovered 5 exits: *Fac x4 / Gar) -5/Garrison (discovered 3 exits: *Fac x3) -4/Factory -4/Waste -4/Factory -4/Garrison (discovered 3 exits: *Res x3) -3/Research (discovered 4 exits: Res x3 / Gar) -3/Garrison (discovered 3 exits: *Res x3) -2/Research (discovered 2 exits: *Qua x2) -2/Quarantine -1/Access To Epsilon Eridani History --------- Turn | Location | Event 27 | -11/Scrapyard | Discovered new exit (range 16) 56 | -11/Scrapyard | Entered Materials 302 | -10/Materials | Build established: Mutant 585 | -10/Materials | Discovered new exit (range 7) 667 | -10/Materials | Discovered new exit (range 7) 1264 | -10/Materials | Discovered new exit (range 14) 1477 | -10/Materials | Discovered new exit (range 10) 1858 | -10/Materials | Entered Mines 1880 | -10/Mines | Met a Derelict bent on vengeance 2075 | -10/Mines | Learned 4 Materials zone layouts 2178 | -10/Mines | Discovered new exit (range 7) 2404 | -10/Mines | Discovered new exit (range 12) 2418 | -10/Mines | Learned location of 1 exit from Materials 2473 | -10/Mines | Deemed a non-threat by the Exiles lab entrance 2473 | -10/Mines | Discovered new exit (range 5) 2632 | -10/Mines | Discovered new exit (range 13) 3031 | -10/Mines | Entered Exiles 3060 | -10/Exiles | Discovered new exit (range 15) 3083 | -10/Exiles | Met 8R-AWN 3110 | -10/Exiles | Met EX-HEX 3181 | -10/Exiles | Met EX-DEC 3213 | -10/Exiles | Learned location of Zion (-7) 3253 | -10/Exiles | Met EX-BIN 3276 | -10/Exiles | Aligned with FarCom system 3278 | -10/Exiles | Given EX-Vault access code 3321 | -10/Exiles | Opened EX-Vault 3337 | -10/Exiles | Found AWS/Thermal 3346 | -10/Exiles | Found Chronowheel 3349 | -10/Exiles | Found Longsword +1 3402 | -10/Exiles | Warned to stay clear of 0b10 Research branches 3618 | -10/Exiles | Stole three prototypes: Chronowheel, AWS/Thermal, Longsword +1 3618 | -10/Exiles | Entered Mines 3692 | -9/Mines | Assembled infested the area 3697 | -9/Mines | Assisted by a Guerilla fighting off Assembled 3810 | -9/Mines | Discovered new exit (range 8) 3845 | -9/Mines | A weapon hastily lodged in a ceiling crevice suddenly fell to the ground 3889 | -9/Mines | Entered Materials 3889 | -8/Materials | Evolved 4 slots: Propulsion x2, Utility x2 3890 | -8/Materials | Identified exit to Factory 4180 | -8/Materials | Build established: Scavenger-Mutant 5283 | -8/Materials | Learned location of 3 exits from Factory 5338 | -8/Materials | Learned location of Extension (-5) 5422 | -8/Materials | Learned 4 Recycling zone layouts 5468 | -8/Materials | Learned 4 Lower Caves zone layouts 5587 | -8/Materials | Learned location of Lower Caves (-7) 5708 | -8/Materials | Garrison activated, responded to threat 6902 | -8/Materials | Discovered new exit (range 8) 7148 | -8/Materials | Identified exit to Garrison 7148 | -8/Materials | Entered Garrison 7148 | -8/Garrison | Accompanied by 1 ally 7154 | -8/Garrison | Triggered checkpoint 7414 | -8/Garrison | Destroyed 11 combat bots 7474 | -8/Garrison | Triggered checkpoint 7689 | -8/Garrison | Rescued a captive Derelict 7691 | -8/Garrison | Rescued a captive Derelict 7765 | -8/Garrison | Core integrity fell below 50% 7999 | -8/Garrison | Garrison Relay disabled 8015 | -8/Garrison | Garrison Relay disabled 8070 | -8/Garrison | Discovered new exit (range 11) 8323 | -8/Garrison | Discovered new exit (range 16) 8428 | -8/Garrison | Garrison Relay disabled 8556 | -8/Garrison | Learned Materials security intel 8762 | -8/Garrison | Discovered new exit (range 10) 8866 | -8/Garrison | Garrison Relay disabled 9069 | -8/Garrison | Installed Relay Interface Framework 9169 | -8/Garrison | Entered Materials 9375 | -8/Materials | Build established: Bothacker-Mutant 10931 | -8/Materials | Build established: Scavenger-Mutant 11298 | -8/Materials | Central database locked down 11312 | -8/Materials | Identified exit to Garrison 11312 | -8/Materials | Entered Garrison 11312 | -8/Garrison | Accompanied by 2 allies 11586 | -8/Garrison | Discovered exit to Factory (range 73) 11586 | -8/Garrison | Discovered exit to Factory (range 91) 11586 | -8/Garrison | Discovered exit to Factory (range 58) 11788 | -8/Garrison | Triggered checkpoint 11789 | -8/Garrison | Triggered checkpoint 11796 | -8/Garrison | Triggered checkpoint 11812 | -8/Garrison | Garrison Relay disabled 11837 | -8/Garrison | Triggered checkpoint 11949 | -8/Garrison | Spotted B-75 Beast 11961 | -8/Garrison | Destroyed B-75 Beast 11983 | -8/Garrison | AWS/Thermal suddenly broke down 12029 | -8/Garrison | Activated Chronowheel 12034 | -8/Garrison | Expanded RIF knowledge: Robot Detection 12180 | -8/Garrison | Triggered checkpoint 12541 | -8/Garrison | Build established: Bothacker-Mutant 12648 | -8/Garrison | Core integrity fell below 20% 12706 | -8/Garrison | Lost 3 parts (2n1u) 12929 | -8/Garrison | Entered Factory 12929 | -7/Factory | Evolved 2 slots: Propulsion x1, Utility x1 12930 | -7/Factory | Identified exit to Lower Caves 12931 | -7/Factory | Identified exit to Factory 12931 | -7/Factory | FarCom data flow suspended 13427 | -7/Factory | Discovered exit to Lower Caves (range 8) 14814 | -7/Factory | Identified exit to Garrison 14814 | -7/Factory | Entered Garrison 14841 | -7/Garrison | Discovered exit to Factory (range 81) 14841 | -7/Garrison | Discovered exit to Factory (range 103) 14841 | -7/Garrison | Discovered exit to Factory (range 56) 14909 | -7/Garrison | Garrison Relay disabled 14988 | -7/Garrison | Triggered checkpoint 15128 | -7/Garrison | Expanded RIF knowledge: Hotswap 15216 | -7/Garrison | Triggered checkpoint 15428 | -7/Garrison | Triggered checkpoint 15476 | -7/Garrison | Rescued a captive Derelict 15491 | -7/Garrison | Garrison Relay disabled 15534 | -7/Garrison | Entered Factory 15534 | -6/Factory | Accompanied by 2 allies 15534 | -6/Factory | Evolved 2 slots: Power x1, Utility x1 15769 | -6/Factory | Identified exit to Garrison 15769 | -6/Factory | Entered Garrison 15769 | -6/Garrison | Accompanied by 3 allies 15783 | -6/Garrison | Triggered checkpoint 15783 | -6/Garrison | Found embedded Infiltrators 15854 | -6/Garrison | Garrison Relay disabled 15940 | -6/Garrison | Triggered checkpoint 15941 | -6/Garrison | Triggered checkpoint 15954 | -6/Garrison | Triggered checkpoint 15994 | -6/Garrison | Lost 3 allies 16055 | -6/Garrison | Discovered new exit (range 12) 16063 | -6/Garrison | Expanded RIF knowledge: Zone Cloak 16085 | -6/Garrison | Triggered checkpoint 16185 | -6/Garrison | Phase Generator disabled 16310 | -6/Garrison | Discovered new exit (range 9) 16334 | -6/Garrison | Spotted Executioner 16335 | -6/Garrison | Spotted Executioner 16370 | -6/Garrison | Build established: Botlord-Mutant 16413 | -6/Garrison | Triggered checkpoint 16454 | -6/Garrison | Garrison Relay disabled 16522 | -6/Garrison | Destroyed Executioner 16530 | -6/Garrison | Destroyed Executioner 16549 | -6/Garrison | Found Exp. Core Analyzer 16624 | -6/Garrison | Discovered new exit (range 15) 16675 | -6/Garrison | Triggered checkpoint 16700 | -6/Garrison | Garrison Relay disabled 16821 | -6/Garrison | Entered Factory 16821 | -6/Factory | Accompanied by 3 allies 16962 | -6/Factory | Identified exit to Garrison 17528 | -6/Factory | Entered Garrison 17528 | -6/Garrison | Accompanied by 1 ally 17552 | -6/Garrison | Expanded RIF knowledge: Patrol Navigation 17592 | -6/Garrison | Triggered checkpoint 17644 | -6/Garrison | Garrison Relay disabled 17870 | -6/Garrison | Triggered checkpoint 17900 | -6/Garrison | Triggered checkpoint 17926 | -6/Garrison | Triggered checkpoint 18072 | -6/Garrison | Build established: Bothacker-Mutant 18074 | -6/Garrison | Garrison Relay disabled 18136 | -6/Garrison | Discovered new exit (range 9) 18238 | -6/Garrison | Triggered checkpoint 18353 | -6/Garrison | Discovered new exit (range 11) 18382 | -6/Garrison | Triggered checkpoint 18400 | -6/Garrison | Garrison Relay disabled 18518 | -6/Garrison | Discovered new exit (range 14) 18566 | -6/Garrison | Triggered checkpoint 18600 | -6/Garrison | Garrison Relay disabled 18717 | -6/Garrison | Entered Factory 18717 | -5/Factory | Accompanied by 3 allies 18717 | -5/Factory | Evolved 2 slots: Propulsion x1, Utility x1 19266 | -5/Factory | Identified exit to Garrison 19348 | -5/Factory | Entered Garrison 19348 | -5/Garrison | Accompanied by 5 allies 19358 | -5/Garrison | Triggered checkpoint 19420 | -5/Garrison | Expanded RIF knowledge: Watcher Feeds 19484 | -5/Garrison | Triggered checkpoint 19574 | -5/Garrison | Garrison Relay disabled 19610 | -5/Garrison | Spotted B-75 Beast 19646 | -5/Garrison | Allies destroyed B-75 Beast 19728 | -5/Garrison | Build established: Botlord-Mutant 19861 | -5/Garrison | Destroyed 9 combat bots 19916 | -5/Garrison | Triggered checkpoint 19933 | -5/Garrison | Triggered checkpoint 20006 | -5/Garrison | Triggered checkpoint 20006 | -5/Garrison | Garrison Relay disabled 20037 | -5/Garrison | Found embedded Infiltrators 20067 | -5/Garrison | Triggered checkpoint 20128 | -5/Garrison | Found Quantum Capacitor 20148 | -5/Garrison | Discovered new exit (range 13) 20232 | -5/Garrison | Discovered new exit (range 10) 20242 | -5/Garrison | Triggered checkpoint 20266 | -5/Garrison | Garrison Relay disabled 20330 | -5/Garrison | Rescued a captive Derelict 20380 | -5/Garrison | Triggered checkpoint 20406 | -5/Garrison | Triggered checkpoint 20519 | -5/Garrison | Learned Factory security intel 20536 | -5/Garrison | Triggered checkpoint 20546 | -5/Garrison | Discovered new exit (range 6) 20572 | -5/Garrison | Triggered checkpoint 20575 | -5/Garrison | Lost 3 allies 20581 | -5/Garrison | Garrison Relay disabled 20625 | -5/Garrison | Garrison Relay disabled 20810 | -5/Garrison | Entered Factory 20810 | -5/Factory | Accompanied by 5 allies 21040 | -5/Factory | Discovered new exit (range 7) 21339 | -5/Factory | Identified exit to Upper Caves 21339 | -5/Factory | Identified exit to Extension 21677 | -5/Factory | Entered Extension 21677 | -5/Extension | Accompanied by 2 allies 22305 | -5/Extension | Rescued a captive Derelict 22306 | -5/Extension | Rescued a captive Derelict 22317 | -5/Extension | Rescued a captive Derelict 22317 | -5/Extension | Rescued a captive Derelict 22337 | -5/Extension | Rescued a captive Derelict 22444 | -5/Extension | Rescued A7 22699 | -5/Extension | Spotted B-75 Beast 22715 | -5/Extension | Allies destroyed B-75 Beast 22719 | -5/Extension | Spotted B-75 Beast 22732 | -5/Extension | Destroyed B-75 Beast 22760 | -5/Extension | Lost 3 allies 22803 | -5/Extension | Rescued a captive Derelict 22805 | -5/Extension | Rescued a captive Derelict 23054 | -5/Extension | Rescued a captive Derelict 23104 | -5/Extension | Energy Cycler disabled 23105 | -5/Extension | Rescued a captive Derelict 23108 | -5/Extension | Rescued a captive Derelict 23108 | -5/Extension | Rescued a captive Derelict 23111 | -5/Extension | Rescued a captive Derelict 23216 | -5/Extension | Discovered new exit (range 10) 23217 | -5/Extension | Discovered new exit (range 6) 23241 | -5/Extension | P-70 Sage assimilated allied WN-LBL(g) 23262 | -5/Extension | Entered Cetus 23262 | -5/Cetus | Accompanied by 9 allies (A7) 23267 | -5/Cetus | Acquired a Cetus Manufacturing Module code from A7 23282 | -5/Cetus | Spotted Cetus Guard 23282 | -5/Cetus | Spotted Cetus Guard 23285 | -5/Cetus | Spotted Cetus Guard 23293 | -5/Cetus | Spotted Cetus Guard 23295 | -5/Cetus | Allies destroyed Cetus Guard 23297 | -5/Cetus | Allies destroyed Cetus Guard 23304 | -5/Cetus | Allies destroyed Cetus Guard 23305 | -5/Cetus | Allies destroyed Cetus Guard 23334 | -5/Cetus | Lost 9 allies 23366 | -5/Cetus | Started Cetus Manufacturing Module 23380 | -5/Cetus | Escorted A7 to Cetus Mainframe 23391 | -5/Cetus | Manufactured an Enhanced Grunt 23395 | -5/Cetus | Discovered new exit (range 15) 23416 | -5/Cetus | Manufactured an Enhanced Grunt 23441 | -5/Cetus | Manufactured an Enhanced Grunt 23466 | -5/Cetus | Manufactured an Enhanced Grunt 23491 | -5/Cetus | Manufactured an Enhanced Grunt 23912 | -5/Cetus | Entered Archives 23912 | -5/Archives | Accompanied by 9 allies (A7) 23917 | -5/Archives | Received a hacking code to weaken MAIN.C 23957 | -5/Archives | Discovered new exit (range 16) 24217 | -5/Archives | Build established: Bothacker-Mutant 24375 | -5/Archives | Discovered new exit (range 14) 24425 | -5/Archives | Entered Hub_04(d) 24425 | -5/Hub_04(d) | Accompanied by 11 allies 24501 | -5/Hub_04(d) | Discovered new exit (range 2) 24597 | -5/Hub_04(d) | Lost 3 allies 24721 | -5/Hub_04(d) | Discovered new exit (range 21) 24745 | -5/Hub_04(d) | Discovered new exit (range 29) 25225 | -5/Hub_04(d) | Build established: Scavenger-Mutant 25291 | -5/Hub_04(d) | Discovered new exit (range 19) 25560 | -5/Hub_04(d) | Network Hub disabled 25625 | -5/Hub_04(d) | First assault squad dispatched 25642 | -5/Hub_04(d) | Network Hub disabled 25665 | -5/Hub_04(d) | Spotted Lightning 25680 | -5/Hub_04(d) | Network Hub disabled 25688 | -5/Hub_04(d) | Spotted Lightning 25688 | -5/Hub_04(d) | Spotted Lightning 25710 | -5/Hub_04(d) | Destroyed Lightning 25720 | -5/Hub_04(d) | Destroyed Lightning 25725 | -5/Hub_04(d) | Found Exp. EM Shield 25801 | -5/Hub_04(d) | System corruption reached 10% 25815 | -5/Hub_04(d) | Destroyed Lightning 25855 | -5/Hub_04(d) | Found Prototype Device 25871 | -5/Hub_04(d) | Found Exp. EM Shield 25873 | -5/Hub_04(d) | Identified Exp. Phase Shifter 25882 | -5/Hub_04(d) | Found EMDS 26020 | -5/Hub_04(d) | Identified exit to Garrison 26020 | -5/Hub_04(d) | Entered Garrison 26051 | -5/Garrison | Triggered checkpoint 26096 | -5/Garrison | Garrison Relay disabled 26149 | -5/Garrison | Triggered checkpoint 26171 | -5/Garrison | Spotted B-75 Beast 26176 | -5/Garrison | Triggered checkpoint 26239 | -5/Garrison | Lost 4 parts (1n1u2w) 26245 | -5/Garrison | Destroyed 12 combat bots 26363 | -5/Garrison | Triggered checkpoint 26393 | -5/Garrison | Discovered new exit (range 8) 26410 | -5/Garrison | Triggered checkpoint 26444 | -5/Garrison | Garrison Relay disabled 26460 | -5/Garrison | Lost 3 parts (1p1n1u) 26564 | -5/Garrison | Triggered checkpoint 26576 | -5/Garrison | Lost 3 parts (1n1u1w) 26639 | -5/Garrison | Rescued a captive Derelict 26640 | -5/Garrison | Rescued a captive Derelict 26681 | -5/Garrison | Discovered new exit (range 3) 26699 | -5/Garrison | Expanded RIF knowledge: Code Merge 26736 | -5/Garrison | Core integrity fell below 50% 26811 | -5/Garrison | Discovered new exit (range 12) 26844 | -5/Garrison | Triggered checkpoint 26875 | -5/Garrison | Build established: Bothacker-Mutant 26877 | -5/Garrison | Garrison Relay disabled 27170 | -5/Garrison | Lost 4 allies 27209 | -5/Garrison | Build established: Botlord-Mutant 27345 | -5/Garrison | Garrison Relay disabled 27372 | -5/Garrison | Entered Factory 27372 | -4/Factory | Evolved 2 slots: Utility x2 27717 | -4/Factory | Found Quantum Capacitor 27810 | -4/Factory | P-70 Sage assimilated allied G-67 Veteran 27923 | -4/Factory | Sucked down chute 27923 | -4/Factory | Entered Waste 27924 | -4/Waste | Joined by Warlord forces that had cleared the area 27938 | -4/Waste | 1 allies followed down the chute 28143 | -4/Waste | A Compactor rumbled back to life 28143 | -4/Waste | Spotted C-40 Crusher 28144 | -4/Waste | Allies destroyed C-40 Crusher 28185 | -4/Waste | Discovered new exit (range 12) 28363 | -4/Waste | Entered Factory 28363 | -4/Factory | Accompanied by 19 allies 28595 | -4/Factory | Identified exit to Garrison 29118 | -4/Factory | Entered Garrison 29118 | -4/Garrison | Accompanied by 16 allies 29166 | -4/Garrison | Spotted B-86 Titan 29170 | -4/Garrison | Triggered checkpoint 29200 | -4/Garrison | Triggered checkpoint 29227 | -4/Garrison | Lost 8 allies 29255 | -4/Garrison | Triggered checkpoint 29277 | -4/Garrison | Garrison Relay disabled 29278 | -4/Garrison | Garrison Relay disabled 29461 | -4/Garrison | Destroyed B-86 Titan 29484 | -4/Garrison | Triggered checkpoint 29586 | -4/Garrison | Triggered checkpoint 29597 | -4/Garrison | Expanded RIF knowledge: Threat Obfuscation 29616 | -4/Garrison | Garrison Relay disabled 29707 | -4/Garrison | P-70 Sage assimilated allied PC-LF4(m) 29734 | -4/Garrison | Triggered checkpoint 29804 | -4/Garrison | Discovered new exit (range 14) 29892 | -4/Garrison | Found embedded Infiltrators 29939 | -4/Garrison | Triggered checkpoint 30122 | -4/Garrison | Discovered new exit (range 4) 30186 | -4/Garrison | Triggered checkpoint 30228 | -4/Garrison | Garrison Relay disabled 30236 | -4/Garrison | Triggered checkpoint 30303 | -4/Garrison | Discovered new exit (range 8) 30509 | -4/Garrison | Entered Research 30509 | -3/Research | Accompanied by 7 allies 30509 | -3/Research | Evolved 2 slots: Power x1, Utility x1 30650 | -3/Research | Repaired Adv. Remote Datajack 30679 | -3/Research | Found Adv. Powered Armor 30682 | -3/Research | Found Adv. Powered Armor 30684 | -3/Research | Found Adv. Powered Armor 30750 | -3/Research | Repaired Cld. Phase Cannon 30815 | -3/Research | Lost 8 allies 31009 | -3/Research | First assault squad dispatched 32079 | -3/Research | Central database locked down 32134 | -3/Research | Identified exit to Research 32252 | -3/Research | Garrison activated, responded to threat 32888 | -3/Research | Identified exit to Garrison 33124 | -3/Research | Entered Garrison 33124 | -3/Garrison | Accompanied by 1 ally 33141 | -3/Garrison | Triggered checkpoint 33227 | -3/Garrison | Garrison Relay disabled 33417 | -3/Garrison | Phase Generator disabled 33445 | -3/Garrison | Triggered checkpoint 33448 | -3/Garrison | Triggered checkpoint 33471 | -3/Garrison | Triggered checkpoint 33544 | -3/Garrison | Discovered exit to Research (range 8) 33553 | -3/Garrison | Garrison Relay disabled 33597 | -3/Garrison | Triggered checkpoint 33649 | -3/Garrison | Spotted B-86 Titan 33657 | -3/Garrison | Garrison Relay disabled 33807 | -3/Garrison | Discovered exit to Research (range 14) 33844 | -3/Garrison | Triggered checkpoint 33925 | -3/Garrison | Garrison Relay disabled 33956 | -3/Garrison | Expanded RIF knowledge: Autooverride 33996 | -3/Garrison | Spotted Striker 33997 | -3/Garrison | Spotted Striker 34008 | -3/Garrison | Triggered checkpoint 34011 | -3/Garrison | Garrison Relay disabled 34094 | -3/Garrison | Triggered checkpoint 34161 | -3/Garrison | Garrison Relay disabled 34205 | -3/Garrison | Discovered exit to Research (range 12) 34254 | -3/Garrison | Entered Research 34254 | -2/Research | Accompanied by 3 allies 34254 | -2/Research | Evolved 2 slots: Propulsion x1, Utility x1 34529 | -2/Research | Found Prototype Processor 34529 | -2/Research | Identified Spectral Analyzer 34533 | -2/Research | Found Spectral Analyzer 34546 | -2/Research | Central database locked down 34706 | -2/Research | Spotted B-90 Cyclops 34726 | -2/Research | P-80 Master assimilated allied Assassin 8e 34785 | -2/Research | Identified exit to Quarantine 34825 | -2/Research | Lost 5 allies 34868 | -2/Research | Found Exp. Terrain Scanner 34895 | -2/Research | Found Quantum Capacitor 34953 | -2/Research | Entered Quarantine 35140 | -2/Quarantine | Found Sigix Corpse 35158 | -2/Quarantine | Found Sigix Corpse 35216 | -2/Quarantine | Central database locked down 35235 | -2/Quarantine | Found Terrabomb 35322 | -2/Quarantine | Found Alien Artifact 35322 | -2/Quarantine | Identified Phase Redirector 35423 | -2/Quarantine | Repaired Enh. Nova Cannon+ 35499 | -2/Quarantine | Repaired Adv. Powered Armor 35596 | -2/Quarantine | Repaired Exp. Heat Sink 35639 | -2/Quarantine | System corruption reached 10% 35742 | -2/Quarantine | Discovered new exit (range 22) 35781 | -2/Quarantine | Spotted Alpha 7 35788 | -2/Quarantine | Entered Access 35788 | -1/Access | Evolved 2 slots: Utility x2 35998 | -1/Access | Lost 3 allies 36080 | -1/Access | Used Terrabomb 36094 | -1/Access | Discovered new exit (range 3) 36117 | -1/Access | Spotted B-99 Colossus 36120 | -1/Access | Assimilated Colossus 10a with formatsys_high 36123 | -1/Access | Spotted B-99 Colossus 36129 | -1/Access | Destroyed B-99 Colossus 36138 | -1/Access | Found Multirail 36140 | -1/Access | Found Multirail 36224 | *** | Escaped! Last Messages --------------- 36124_ Slug penetrates Colossus 10a. 36126_ Slug penetrates B-99 Colossus. 36126_ Slug penetrates U-05 Engineer. 36126_ U-05 Engineer destroyed. 36128_ Slug penetrates Colossus 10a. 36129_ B-99 Colossus suffers critical hit (Meltdown). 36129_ Adv. Coolant Injector melted. 36137_ U-05 Engineer builds a Wall. 36138_ Acquired Multirail. 36141_ U-05 Engineer builds a Wall. 36142_ Discarded Relay Coupler [Behemoth]. 36142_ Discarded Relay Coupler [NC]. 36144_ Acquired Lyr. Heavy Armor Plating. 36145_ Acquired 104 matter. 36150_ U-05 Engineer builds a Wall. 36160_ U-05 Engineer forms the Earth. 36161_ U-05 Engineer builds a Wall. 36161_ U-05 Engineer forms the Earth. 36194_ U-05 Engineer builds a Reinforced Barrier. [Achievement: Leg Day] Map ----- +----------------------------------------------------+ | ?????????????????????????????????????????????????? | | ?????????????????????????????????????????????????? | | ?????????????????????????????????????????????????? | | ?????????????????????????????????????????????????? | | ??????????????????##?????????????????????????????? | | ??????????# ?###### #######??????????????????????? | | ??????????# " ###????????????????????? | | ????????### """""""""" ###??????????????????? | | ???????##"" " " ###????????????????? | | ??????? " " " ##???????????????? | | ??????" " " # ##??????????????? | | ?? ???? " " # ##?????????????? | | ?? " " " # ##????????????? | | ? " # ! # #????????????? | | # + + # ##???????????? | | # " # # #???????????? | | # ! " # # ##??????????? | | #"""""""""" ############# #??????????? | | # " # ""### # #??????????? | | " ""###"""""""""""""""""%######???????? | | " """ """" """"]% #???????? | | " """ """" "??"!% #???????? | | " " """""" "??"%== ###+##### | | " " " " "??"*= | | " " " "" " "??" | | " " " @" " "??" | | # " " " "??" | | # " """ "" """" ####+#### | | " " %% % #???? ?? | | " " """"% #????? | | " """""""""""#######""#########?????? | | "[=" """ #????????? | | # "=%# ##?????????? | | # "[[# #??????????? | | ## "%[# ##??????????? | | ## #=[# #???????????? | | ?## #%*#### ##???????????? | | ###""###"##=!# # #??#?????????? | | !*=!# ## ##????????????? | | != # # ##?????????????? | | # ##### ##??????????????? | | # ## ##???????????????? | | !! # ###????#???????????? | | [=!*# ###??#???????????????? | | !=!*|# ###????????????????????? | | ########### [######"#######??????????????????????? | | #???????#% # #?#?????#??????????????? | | #???????# # #?#???????#????????????? | | #??????## # #???????#??#??#????????? | | #???????# # #??????###?????????????? | +----------------------------------------------------+ Best States ------------- Heat Dissipation 104 Coolant Potential 100 Energy Generation 65 Energy Capacity 690 Matter Stores 300 Matter Capacity 300 Sight Range 24 Terrain Scan Range 30 Terrain Scan Density 10 Jamming Range 14 Armor Coverage 1200 Resistance: TH 10 Resistance: EM 75 Melee Speed Boost 20 Phase Shifting 20 Evasion (%) 75 Targeting Accuracy 8 Core Analysis 8 Offensive Hacking 22 Defensive Hacking 12 Relay Coupler Types 6 Relay Coupler Value 187 Authchip Count 1 Item Schematics ----------------- None Robot Schematics ------------------ M-13 Machinist | -10/Materials | Hacked M-28 Smith | -8/Materials | Hacked B-48 Gladiator | -7/Factory | Hacked Fabricated ------------ Nothing Repaired ---------- Adv. Remote Datajack | 4% | -3/Research Cld. Phase Cannon | 27% | -3/Research Enh. Nova Cannon | 23% | -2/Quarantine Adv. Powered Armor | 50% | -2/Quarantine Exp. Heat Sink | 37% | -2/Quarantine Studied --------- Aluminum Leg | -8/Materials | Hacked Hvy. Assault Rifle | -8/Materials | Hacked Carbon-fiber Leg | -8/Materials | Hacked Imp. Aluminum Leg | -8/Materials | Hacked Adv. Remote Datajack | -3/Research | Hacked Imp. Thunder Leg | -3/Research | Hacked Centrium Leg | -3/Research | Hacked Enh. Nova Cannon | -3/Research | Hacked Rnf. Antimatter Reactor | -2/Research | Hacked Particle Reactor | -2/Quarantine | Hacked Alien Tech Used ----------------- Phase Redirector Terrabomb Achievements -------------- Leg Day Martial Artist Challenges ------------ None Game ------ Seed GaussChromaticShifter Manual? 0 Play Time 04:14:02 Cumulative 798.7 hours Start 2025.11.07 @ 08:02:22 End 2025.11.08 @ 20:19:12 Sessions 29 Manual Loads 0 Difficulty Rogue Special Mode None Game No. 400 Rogue 400 Adventurer 0 Explorer 0 Win Type 0 Total 67 Types 43/5/6/4/1/1/3/2/1/1 Lore% 92 Gallery% 85 Achievement% 68 Wizard Run 0 Options --------- Layout 0 ASCII 0 Keyboard 1 Movement Numpad Keybinds 0 Fullscreen 2 Font 18/SmallcapsGlow Map View 76x50 Zoom Use 0% Tactical HUD 1 Map Filters NONE Filters NONE Steam 1 RUN: 083fa59b-9e48-4e5b-b356-9d0d6d73e635